{"text_format":"1","workbook":"xlsx","n_sheets":3,"sheets":["Worksheet","Planilha1","Teste"],"not_rendered":{"charts":0,"images":0,"macros":1,"external_links":0,"defined_names":0,"comments":0,"pivot_tables":0},"unopened":[],"bounds":{"document_bytes":16777216,"sheet_cells":100000,"rows_first":2000,"rows_last":500,"rows_between":2000,"halvings":0,"cell_chars":16384,"cell_head_chars":4096},"cells_cut":0,"cells_raw":0,"read":"whole","date_system":"1900"}

{"sheet":"Worksheet","index":0,"n_rows":145,"n_cols":48,"rows_kept":145,"cut":false,"hidden":true,"merged":[]}
["SCA - Relatório de Candidatos ENA 2019"]
["Gerado em 26/09/2018 12:18:51"]
[]
[]
["ID","CPF","Nome","E-mail","Data Nasc","Nasc UF","Nasc Município","Nasc País","Sexo","Estado Civil","Tipo Endereço","Logradouro","Número","Compl","Bairro","UF","Município","CEP","Te Celular","Tel Resid","tel_comercial","Instituicao","Inst Cidade","Protocolo","emp1_nome","emp1_tipo","emp1_mes_fim","emp1_cidade","emp1_cargo","emp1_mes_ini","emp2_nome","emp2_cidade","emp2_cargo","emp2_tipo","emp2_mes_ini","emp2_mes_fim","curso1_tipo","curso1_nome","curso1_mes_ini","curso1_mes_fim","curso1_situacao","curso2_tipo","curso2_nome","curso2_mes_ini","curso2_mes_fim","curso2_situacao","Nota","Situação"]
[8398,"884.683.302-30","ADAM PEREIRA MIRANDA","adam.sandler777@gmail.com","14/01/1986 00:00:00","RO","Guajará-Mirim","BRASIL","M",5,1,"Av: Pedro Eleuterio Ferreira ",1093,null,"Tamandaré","RO","Guajará-Mirim",76850000,"(69) 99207-2053","(69)35413479",null,"UNIR","Porto Velho - RO",null,"EEEFM SIMON BOLIVAR","Escola da Rede Estadual",null,"Guajará- Mirim - RO","Professor","03/2017",null,null,null,"---",null,null,1,"Matemática","02/2005","12/2008",1,null,null,null,null,null,10,{"$f":"IF(AU6>=9,\"Aprovado\",\"Desclassificado\")","v":"Aprovado"}]
[24075,"221.359.602-68","ADÃO GERALDO COLOMBO","ageraldoc@yahoo.com.br","09/03/1965 00:00:00","RO","Porto Velho","BRASIL","M",1,1,"RUA DO URANIO",3755,"CONJUNTO MARECHAL RONDON","FLODOALDO PONTES PINTO","RO","Porto Velho",76820666,"(06) 99916-5464","06932254413",null,"UNIR","Porto Velho - RO",null,null,"Outro tipo de estabelecimento","08/2017","PORTO VELHO - RO","Auditor Fiscal","06/1996",null,null,null,"---",null,null,1,"MATEMATICA","03/1988","08/1993",1,null,null,null,null,null,13,{"$f":"IF(AU7>=9,\"Aprovado\",\"Desclassificado\")","v":"Aprovado"}]
[20900,"616.927.272-49","ADEMILSON ALVES MARTINS","ademilsonmartins1234@gmail.com","04/01/1978 00:00:00","RO","jí - Paraná","BRASIL","M",6,1,"Rodovia - 470; Lote - 36 R; Gleba - 26","Km - 29","Área - Rural","Zona - Rural","RO","Vale do Paraíso",76923000,"(69) 99231-2679",null,"(69) 3464 - 1446","UNIR","Porto Velho - RO",null,null,"---",null,null,null,null,null,null,null,"---",null,null,null,null,null,null,null,null,null,null,null,null,"AUSENTE","Aprovado"]
[3564,"583.057.182-04","AGNALDO ALMEIDA PEREIRA","agnaldoap@hotmail.com","22/06/1976 00:00:00","RO","Porto Velho","BRASIL","M",1,1,"Rua Tapajós",6142,null,"São Sebastião","RO","Porto Velho",76801638,"(69) 99276-1652",6932215675,null,"UNIR","Porto Velho - RO",null,"GOVERNO DO ESTADO DE RONDONIA","Escola da Rede Estadual",null,"PORTO VELHO - RO","PROFESSOR CLASSE C",null,"E. Me. F Wadih Darwich Zacarias","PORTO VELHO - RO","PROFESSOR","Escola da Rede Municipal",null,null,1,"LICENCIATURA PLENA EM MATEMATICA","01/1998","12/2002",1,3,"metodologia do ensino superior","01/2002","06/2003",1,11,"Aprovado"]
[19754,"026.404.362-60","ALAILSON CARIAS DA SILVA","alailsonsilva2@gmail.com","18/11/1996 00:00:00","RO","Buritis","BRASIL","M",5,1,"Rua Primo Amaral","Nº 2832","Casa Verde","Setor 06","RO","Buritis",76880000,"(69) 99255-3065","(69) 99255-3065","(69) 99255-3065","UNIR","Porto Velho - RO",null,null,"---",null,null,null,null,null,null,null,"---",null,null,null,null,null,null,null,null,null,null,null,null,4,"Desclassificado"]
[958,"632.363.462-72","ALCELIO DA SILVA DOS REIS","alcelio_reis@hotmail.com","03/04/1978 00:00:00","AM","Manaus","BRASIL","M",1,1,"Rua Antônio Vivaldi - de 6523/6524 a 6825/6826",6661,null,"Aponiã","RO","Porto Velho",76824096,"(69) 99232-8567",null,null,"UNIR","Porto Velho - RO",null,"colégio adventista de porto velho","Escola Privada",null,"Porto velho - RO","professor","08/2011",null,null,null,"---",null,null,1,"licenciatura plena em matemática","03/2003","12/2006",1,3,"docência do ensino superior","06/2012","06/2015",1,11,"Aprovado"]
[8796,"613.216.802-87","ALESSANDRO DE SOUSA RODRIGUES","sousa0808@hotmail.com","08/08/1976 00:00:00","RO","Porto Velho","BRASIL","M",3,1,"RUA EDUARDO LIMA E SILVA",2114,null,"FLODOALDO PONTES PINTO","RO","Porto Velho",76820396,"(69) 99277-4415",null,null,"UNIR","Porto Velho - RO",null,"GOVERNO DO ESTADO DE RONDÔNIA","Escola da Rede Estadual",null,"PORTO VELHO - RO","PROFESSOR NÍVEL III","04/1997",null,null,null,"---",null,null,1,"MATEMÁTICA","02/1996","12/1999",1,3,"GESTÃO PÚBLICA","02/2001","12/2001",1,16,"Aprovado"]
[13578,"921.285.052-91","ALEX RODRIGUES DE LIMA","ALEXRODRIGUES_16@HOTMAIL.COM","14/11/1990 00:00:00","RO","Porto Velho","BRASIL","M",5,1,"Rua Bartolomeu Pereira ",3523,null,"Eletronorte","RO","Porto Velho",76808476,"(69) 99202-1385",6932274307,null,"UNIR","Porto Velho - RO",null,"SANTA MARCELINA MARCELLO CÂNDIA","Escola da Rede Estadual",null,"PORTO VELHO - RO","PROFESSOR CLASSE C","02/2015","DOM JOÃO BATISTA COSTA","CANDEIAS DO JAMARI - RO","PROFESSOR MATEMÁTICA 25 HRS","Escola da Rede Municipal","08/2014",null,1,"LICENCIATURA PLENA EM MATEMÁTICA","02/2009","08/2014",1,null,null,null,null,null,15,"Aprovado"]
[500,"920.909.827-72","ALEX SANDRE DE ASSIS GUIMARAES","alex.matematicando@gmail.com","11/02/1967 00:00:00","RJ","Rio de Janeiro","BRASIL","M",1,1,"Rua Carlos Chagas",1751,null,"Conceição","RO","Porto Velho",76808424,"(69) 99983-6005","69 32276005",null,"UNIR","Porto Velho - RO",null,"COLÉGIO TIRADENTES DA POLÍCIA MILITAR DE JACI PARANÁ","Escola da Rede Estadual",null,"PORTO VELHO - RO","PROFESSOR","06/2013",null,null,null,"---",null,null,1,"Matemática","02/2003","06/2006",1,2,"Direito","06/1990","07/1994",1,13,"Aprovado"]
[11693,"902.556.902-15","ALEXANDRO AMÉRICO MACEDO","alexandrotur2010@hotmail.com","11/12/1986 00:00:00","RO","Cacoal","BRASIL","M",5,1,"Rua Professora Maria Lucia da Silva Miller",3665,"Casa","Residencial Parque Alvorada","RO","Cacoal",76961604,"(69) 99609-8845",null,null,"UNIR","Porto Velho - RO",null,"Candido Portinário ","Escola da Rede Municipal",null,"São Miguel - RO","Professor","02/2017","Mario de Andrade","São Miguel - RO","Professor","Escola da Rede Municipal","02/2017",null,1,"Matemática","07/2010","12/2013",1,3,"Ensino da Matemática","09/2012","11/2013",1,6,"Desclassificado"]
[8283,"529.354.002-59","ANA CÁSSIA LADDAGA DIAS ","laddagadias@gmail.com","23/07/1987 00:00:00","AM","Manaus ","BRASIL","F",5,1,"Rua Osório (Cj Rio Guaporé)",2270,"Conjunto guapore","Castanheira","RO","Porto Velho",76811390,"(69) 98123-6893",6932282248,null,"UNIR","Porto Velho - RO",null,null,"---",null,null,null,null,null,null,null,"---",null,null,null,null,null,null,null,null,null,null,null,null,6,"Desclassificado"]
[22308,"911.618.602-82","ANDERSON DE OLIVEIRA FELIX","anderson.ofelix@gmail.com","23/06/1989 00:00:00","RO","Porto Velho","BRASIL","M",5,1,"avenida Guaporé",6100,"apt D202","rio madeira","RO","Porto Velho",76821430,"(69) 99258-0990",null,null,"UNIR","Porto Velho - RO",null,null,"---",null,null,null,null,null,null,null,"---",null,null,null,null,null,null,null,null,null,null,null,null,"AUSENTE","Aprovado"]
[9737,"695.949.102-91","ANGELA MARIA SANTOS DE SOUZA","angela_jipa@hotmail.com","29/09/1981 00:00:00","RO","Ji-Paraná","BRASIL","F",1,1,"Avenida Lupércio Prado Dorofé",810,"casa","Parque Fortaleza","RO","Cacoal",76961772,"(69) 99244-0960",null,null,"UNIR","Porto Velho - RO",null,"E.M.E.I.E.F. Monteiro Lobato","Escola da Rede Municipal",null,"Cacoal - RO","Professora de Matemática","09/2008",null,null,null,"---",null,null,1,"Matemática","02/2000","12/2003",1,3,"Metodologia e Didática do Ensino Superior","03/2008","11/2008",1,18,"Aprovado"]
[5192,"947.562.102-44","ANIELA OLIVA PEREIRA LOBO","anielalobo@hotmail.com","15/05/1989 00:00:00","RO","Porto Velho","BRASIL","F",5,1,"Rua Quintino Bocaiúva - de 1231/1232 a 1578/1579",1518,null,"Olaria","RO","Porto Velho",76801250,"(69) 99989-7789",null,null,"UNIR","Porto Velho - RO",null,null,"---",null,null,null,null,null,null,null,"---",null,null,null,null,null,null,null,null,null,null,null,null,13,"Aprovado"]
[6886,"013.277.492-54","ANNE CRISTINY BORGES","anne-cristiny@hotmail.com","28/02/1994 00:00:00","RO","Ji-Paraná","BRASIL","F",5,1,"Rua Rio Xingu - até 1379/1380",603,null,"Dom Bosco","RO","Ji-Paraná",76907806,"(69) 98141-7634",null,null,"UNIR","Porto Velho - RO",null,"E.E.E.F Silvio Micheluzzi","Escola da Rede Estadual","02/2017","Ji-Paraná - RO","Monitora de matemática - Estágio Remunerado","02/2016",null,null,null,"---",null,null,1,"Matemática","09/2013","07/2017",1,null,null,null,null,null,15,"Aprovado"]
[21677,"853.841.272-87","ANTENOR RAFAEL BISCONSIN","arbisconsin@hotmail.com","30/04/1986 00:00:00","RO","Porto Velho","BRASIL","M",1,1,"RUA PARTICULAR",4676,null,"RIO MADEIRA","RO","Porto Velho",76821494,"(69) 99270-1001",null,null,"UNIR","Porto Velho - RO",null,"TRIBUNAL DE CONTAS DO ESTADO DE RONDONIA","Outro tipo de estabelecimento",null,"PORTO VELHO - RO","AUDITOR DE CONTROLE EXTERNO","02/2010",null,null,null,"---",null,null,2,"CIÊNCIAS ECONÔMICAS","01/2004","12/2009",1,null,null,null,null,null,19,"Aprovado"]
[22418,"561.572.402-10","ANTONIETA DA SILVA BORGES ","borgespw@gmail.com","04/07/1977 00:00:00","AC","Porto Walter","BRASIL","F",2,1,"Rua Doze de dezembro",3422,"apto 02","Cohab","RO","Porto Velho",76807828,"(69) 98432-7833",null,null,"UNIR","Porto Velho - RO",null,null,"---",null,null,null,null,null,null,null,"---",null,null,null,null,null,null,null,null,null,null,null,null,5,"Desclassificado"]
[20797,"654.222.362-20","ANTONIO FRANCISCO GOMES","tonyinfonet@gmail.com","24/02/1977 00:00:00","RO","PORTO VELHO","BRASIL","M",1,1,"RUA GERALDO SIQUEIRA",4325,"CASA","CALADINHO","RO","PORTO VELHO",76808215,"(69) 99258-1566",69322100367,null,"UNIR","Porto Velho - RO",null,null,"---",null,null,null,null,null,null,null,"---",null,null,null,null,null,null,null,null,null,null,null,null,6,"Desclassificado"]
[5852,"020.752.482-30","ARTUR SALVADOR","artursalvador@hotmail.com","07/04/1993 00:00:00","RO","Ji-Paraná","BRASIL","M",5,1,"Rua Veleiro ",6700,null,"Aponiã","RO","Porto Velho",76824100,"(69) 99286-0512",null,null,"UNIR","Porto Velho - RO",null,null,"---",null,null,null,null,null,null,null,"---",null,null,null,null,null,null,null,null,null,null,null,null,6,"Desclassificado"]
[26474,"171.705.832-91","BENITO DA SILVA FRANCO","benithodj@hotmail.com","09/10/1963 00:00:00","PA","Cachoeira do Arari","BRASIL","M",6,1,"RUA GETÚLIO VARGAS",3537,"SUBESQUINA COM PIO XII","SÃO JOÃO BOSCO","RO","Porto Velho",76803742,"(69) 99311-5590",6932230094,"(69)32165741","UNIR","Porto Velho - RO",null,"ESCOLA ESTADUAL DE ENSINO FUNDAMENTAL E MÉDIO GOV. ARAÚJO LIMA (SEDUC-RO)","Escola da Rede Estadual",null,"PORTO VELHO - RO","PROFESSOR","02/1998",null,null,null,"---",null,null,1,"LICENCIATURA PLENA EM MATEMÁTICA","02/1993","12/1997",1,3,"DOCÊNCIA DO ENSINO SUPERIOR","10/2002","01/2004",1,18,"Aprovado"]
[7160,"022.332.622-47","BRUNA RAÍSSA DE OLIVEIRA FALCÃO","bruna.falcao.brof@gmail.com","04/07/1996 00:00:00","RO","Porto Velho","BRASIL","F",5,1,"Clóvis Machado",3450,"CASA","TANCREDO NEVES","RO","Porto Velho",76829482,"(69) 99333-5053",null,null,"UNIR","Porto Velho - RO",null,null,"---",null,null,null,null,null,null,null,"---",null,null,null,null,null,null,null,null,null,null,null,null,10,"Aprovado"]
[17831,"060.323.366-03","BRUNO MARTINS ALEXANDRE","bruno.martins@unir.br","27/04/1982 00:00:00","MG","Sabará","BRASIL","M",5,1,"Avenida José Vieira Caúla",3351,null,"Nova Porto Velho","RO","Porto Velho",76820148,"(69) 99331-0882",null,6921822220,"UNIR","Porto Velho - RO",null,null,"---",null,null,null,null,null,null,null,"---",null,null,null,null,null,null,null,null,null,null,null,null,"AUSENTE","Aprovado"]
[18789,"419.860.162-34","CARLOS ANDRÉ BARBOSA DE JESUS","barbosadejesu@hotmail.com","02/07/1974 00:00:00","RO","Porto Velho","BRASIL","M",1,1,"Rua Paulo Leal ",319,null,"Centro","RO","Porto Velho",76801094,"(69) 9904-9612",6932294836,null,"UNIR","Porto Velho - RO",null,"UNIRON","Outro tipo de estabelecimento",null,"Porto Velho - RO","Professor ","06/2011",null,null,null,"---",null,null,2,"Ciências Econômicas","03/1994","06/2000",1,null,null,null,null,null,"AUSENTE","Aprovado"]
[6161,"729.293.752-72","CARLOS ARLON MOURA NUNES","arlon2212@gmail.com","23/01/1975 00:00:00","RO","Porto Velho","BRASIL","M",1,1,"Rua João Goulart - de 2293/2294 a 2612/2613",2453,"Frente a vila Militar","São Cristóvão","RO","Porto Velho",76804050,"(92) 98442-6835",null,null,"UNIR","Porto Velho - RO",null,null,"---",null,null,null,null,null,null,null,"---",null,null,null,null,null,null,null,null,null,null,null,null,12,"Aprovado"]
[514,"015.038.292-86","CAROLINE LEITE BRAGA","carolineleitebraga@gmail.com","12/02/1994 00:00:00","RO","Porto Velho","BRASIL","F",1,3,"Rua Francisco Dias",2679,"Casa","Lagoinha","RO","Porto Velho",76829720,"(69) 99258-2029",null,null,"UNIR","Porto Velho - RO",null,null,"---",null,null,null,null,null,null,null,"---",null,null,null,null,null,null,null,null,null,null,null,null,10,"Aprovado"]
[2148,"085.280.552-72","CHARLES WILSON MONTEIRO","wilson@unir.br","15/04/1960 00:00:00","AM","Manicoré","BRASIL","M",1,1,"RUA RAIMUNDO CANTUÁRIA",8000,"CASA","TANCREDO NEVES","RO","Porto Velho",76829592,"(69) 99224-6962",null,null,"UNIR","Porto Velho - RO",null,null,"---",null,null,null,null,null,null,null,"---",null,null,null,null,null,null,null,null,null,null,null,null,19,"Aprovado"]
[20328,"029.048.331-02","CHRISTIANE ITO GORSKI","ane.gorski@gmail.com","14/08/1986 00:00:00","RO","PORTO VELHO","BRASIL","F",6,1,"RUA RIO MARMELO",5825,null,"CUNIÃ","RO","PORTO VELHO",76824404,"(69) 99939-2126",6933017147,null,"UNIR","Porto Velho - RO",null,null,"---",null,null,null,null,null,null,null,"---",null,null,null,null,null,null,null,null,null,null,null,null,13,"Aprovado"]
[6332,"326.900.702-78","CICERO JOSÉ DA SILVA ","cicero_prof@live.com","15/08/1969 00:00:00","CE","Mauriti","BRASIL","M",3,1,"Linha 47,5 km 01","S/N","Casa","Zona rural","RO","Alta Floresta D'Oeste",76954000,"(69) 99308-0503",6936412555,6936413924,"UNIR","Porto Velho - RO",null,null,"---",null,null,null,null,null,null,null,"---",null,null,null,null,null,null,null,null,null,null,null,null,"AUSENTE","Aprovado"]
[23408,"747.525.292-20","CLAUDIMAR DA SILVA VIEIRA","clau_mat_23@hotmail.com","21/07/1983 00:00:00","MT","Colíder","BRASIL","M",1,1,"RUA NOVA ESPERANÇA",3841,"CASA","CALADINHO","RO","Porto Velho",76808226,"(69) 99212-0816","(69) 32290767","(69)32114734","UNIR","Porto Velho - RO",null,"JESUS BURLAMAQUI HOSANAH","Escola da Rede Estadual","10/2019","PORTO VELHO - RO","PROFESSOR DE MATEMÁTICA","10/2015",null,null,null,"---",null,null,1,"MATEMÁTICA","04/2003","01/2007",1,null,null,null,null,null,11,"Aprovado"]
[24689,"124.555.983-49","CLAUDIONOR FERNANDES FILHO","claudionor-filho1958@bol.com.br","10/11/1958 00:00:00",null,"porto velho","BRASIL","M",1,1,"rua",2601,"casa","Liberdade","RO","Porto Velho",76803872,"(69) 99307-9695","000000000","00000000","UNIR","Porto Velho - RO",null,null,"---",null,null,null,null,null,null,null,"---",null,null,null,null,null,null,null,null,null,null,null,null,5,"Desclassificado"]
[3965,"659.759.282-49","CLAUDOMICIO DA SILVA SANTOS","aspeafa.agrifamiliar@hotmail.com","14/11/1974 00:00:00","SP","Carapicuíba","BRASIL","M",1,1,"LH 629 KM 85",52,"ZONA RURAL","TARILANDIA","RO","Jaru",76890,"(69) 99383-8461",null,6935261069,"UNIR","Porto Velho - RO",null,"PEDRO VIEIRA DE MELO","Escola da Rede Estadual",null,"TARILANDIA - RO","PROFESSOR","04/2017",null,null,null,"---",null,null,1,"MATEMÁTICA","01/2007","06/2010",1,3,"GESTÃO ESCOLAR","07/2014","11/2015",1,"AUSENTE","Aprovado"]
[21977,"771.055.912-34","CLEISE FRAGA DE ANDRADE","cleisefragadeandrade@gmail.com","27/05/1984 00:00:00","MG","Santana do Manhuaçú","BRASIL","F",5,1,"Rua Toledo - de 355/356 a 647/648",639,"Casa","Jardim dos Migrantes","RO","Ji-Paraná",76900675,"(69) 98411-3724",null,null,"UNIR","Porto Velho - RO",null,"Lauro Benno Prediger","Escola da Rede Estadual",null,"Ji-Paraná - RO","Professora ","07/2010",null,null,null,"---",null,null,3,"Metodologia do ensino superior","07/208","09/2009",1,1,"Matematica","08/2002","12/2006",1,12,"Aprovado"]
[519,"823.319.282-15","CRISTIELLY GLOWASKY","crisglowasky@hotmail.com","16/05/1986 00:00:00","RO","Rolim de Moura","BRASIL","F",6,1,"rua rio madeira",5752,null,"centro","RO","Rolim de Moura",76940000,"(69) 98458-5536",null,6934427373,"UNIR","Porto Velho - RO",null,null,"---",null,null,null,null,null,null,null,"---",null,null,null,null,null,null,null,null,null,null,null,null,"AUSENTE","Aprovado"]
[673,"602.471.852-72","CYRO BENTO DA SILVA","cybs_6@hotmail.com","07/04/1976 00:00:00","AM","Lábrea","BRASIL","M",1,1,"Rua das Mangueiras",1251,null,"Eletronorte","RO","Porto Velho",76808574,"(69) 98403-0563","69 32284545","69 21822185","UNIR","Porto Velho - RO",null,"EEEFM PROFESSOR EDUARDO LIMA E SILVA/ GOVERNO DO ESTADO DE RO","Escola da Rede Estadual","09/2016","PORTO VELHO - RO","PROFESSOR","02/2004",null,null,null,"---",null,null,1,"LICENCIATURA PLENA EM MATEMÁTICA","02/1997","12/2000",1,null,null,null,null,null,12,"Aprovado"]
[21689,"015.343.102-40","DANIELA BISPO DE SOUZA ","danielabispo.2016@hotmail.com","18/01/1993 00:00:00","RO","Alto Paraiso","BRASIL","F",3,1,"Av Benjamim Constant, TV Crisanto Jobim",46,"Apartamento 5 ","Petrópolis ","AM","Manaus ",69000000,"(99) 99355-6577",null,null,"UNIR","Porto Velho - RO",null,null,"---",null,null,null,null,null,null,null,"---",null,null,null,null,null,null,null,null,null,null,null,null,"AUSENTE","Aprovado"]
[11498,"599.006.602-34","DANIELLA PERES FERNANDES","daniellaperes@gmail.com","20/10/1978 00:00:00","RO","JI-PARANÁ","BRASIL","F",5,1,"Rua Antônio Ferreira de Freitas - até 290/291",152,null,"Jardim Presidencial","RO","Ji-Paraná",76901013,"(69) 99377-6020",null,6934231970,"UNIR","Porto Velho - RO",null,null,"---",null,null,null,null,null,null,null,"---",null,null,null,null,null,null,null,null,null,null,null,null,6,"Desclassificado"]
[4253,"889.068.762-20","DIEGO RAFAEL FERREIRA DOS SANTOS","diego_rafael_mat@hotmail.com","30/07/1988 00:00:00","RO","Pimenta Bueno","BRASIL","M",1,1,"Avenida Recife",536,null,"NOVA PIMENTA","RO","Pimenta Bueno",76970000,"(69) 99903-7939",null,"(69) 99973-6540","UNIR","Porto Velho - RO",null,"SEDUC","Escola da Rede Estadual",null,"Pimenta Bueno - RO","PROFESSOR","08/2015",null,null,null,"---",null,null,1,"Matematica","07/2009","12/2012",1,3,"Especializaçao em Matemática ","03/2013","03/2014",1,"AUSENTE","Aprovado"]
[21763,"763.876.742-04","DILMA FARIAS DE ARAÚJO","dilma.araujo@ifro.edu.br","23/05/1982 00:00:00","MT","Jauru","BRASIL","F",5,1,"Rua Tiradente",4430,null,"Nóia","RO","Colorado do Oeste",76993000,"(69) 98112-9990",null,null,"UNIR","Porto Velho - RO",null,null,"---",null,null,null,null,null,null,null,"---",null,null,null,null,null,null,null,null,null,null,null,null,11,"Aprovado"]
[3088,"650.554.972-20","DIRLEUZA SILVA RIBEIRO","dil.breves@hotmail.com","25/12/1978 00:00:00","AM","Itacoatiara","BRASIL","F",5,1,"Rua Raimundo Anderson C. da Silva",40,"Casa","Mazzarello","AM","Manicoré",69280000,"(97) 98803-4327","(97)33851202",null,"UNIR","Porto Velho - RO",null,null,"---",null,null,null,null,null,null,null,"---",null,null,null,null,null,null,null,null,null,null,null,null,"AUSENTE","Aprovado"]
[15737,"422.717.382-53","ELIANE BUFFON FRIGINI","elianefrigini@hotmail.com","15/08/1972 00:00:00","ES","Aracruz","BRASIL","F",1,1,"Rua Princesa Isabel",909,null,"Libertade","RO","Ouro Preto do Oeste",76920000,"(69) 99226-9693",6934614688,null,"UNIR","Porto Velho - RO",null,"EEEFM JOAQUIM DE LIMA AVELINO","Escola da Rede Estadual",null,"OURO PRETO DO OESTE - RO","PROFESSORA","03/1997",null,null,null,"---",null,null,3,"Metodologia do Ensino de Ciências Naturais e Exatas","06/2003","07/2004",1,null,null,null,null,null,10,"Aprovado"]
[18494,"003.543.792-83","ELIANE MAIA GALVÃO","mg-eliane@hotmail.com","30/04/1989 00:00:00",null,null,"BRASIL","F",5,1,"CASA",9021,null,"SAO FRANCISCO","RO","Porto Velho",76813316,"(69) 99264-8491",null,null,"UNIR","Porto Velho - RO",null,"Instituto de Ensino São Francisco ","Escola Privada",null,"Porto Velho - RO","professor","03/2016",null,null,null,"---",null,null,1,"matemática","04/2012","09/2016",1,null,null,null,null,null,11,"Aprovado"]
[19551,"901.421.102-30","ELISSANDRA SILVA QUEIROZ","20sandra.queiroz@gmail.com","09/05/1988 00:00:00","RO","Alto Paraíso","BRASIL","F",1,1,"Rua: H",3747,null,"Jardim Alvorada III","RO","Alto Paraíso",76862000,"(69) 99996-2761","69 3534-2205",null,"UNIR","Porto Velho - RO",null,null,"---",null,null,null,null,null,null,null,"---",null,null,null,null,null,null,null,null,null,null,null,null,10,"Aprovado"]
[26561,"735.435.512-72","ÉMERSON LAURO","laurozc@yahoo.com.br","21/08/1984 00:00:00","RO","Ji-Paraná","BRASIL","M",6,1,"Rua Manoel Pinheiro Machado - de 1800/1801 a 2160/2161",1990,null,"Nossa Senhora de Fátima","RO","Ji-Paraná",76909816,"(69) 99201-4623",null,null,"UNIR","Porto Velho - RO",null,"11049634 - EEEFM PROFESSOR ALEJANDRO YAGUE MAYOR","Escola da Rede Estadual",null,"JI-PARANÁ - RO","PROFESSOR","02/2017",null,null,null,"---",null,null,1,"MATEMÁTICA","02/2003","12/2006",1,null,null,null,null,null,"AUSENTE","Aprovado"]
[6206,"944.791.602-30","EVANILDO ORTIZ LIMA ","evan.raizen@gmail.com","08/02/1989 00:00:00","RO","Porto Velho","BRASIL","M",5,1,"Rua Miguel chakian ",2580,"Casa","Embratel ","RO","Porto Velho",76820890,"(69) 98127-6024",null,null,"UNIR","Porto Velho - RO",null,null,"---",null,null,null,null,null,null,null,"---",null,null,null,null,null,null,null,null,null,null,null,null,13,"Aprovado"]
[7555,"751.970.652-49","EVERTON VITOLA CAPELETI ","vitolacapeleti@gmail.com","08/01/1984 00:00:00","PR","Cascavel","BRASIL","M",1,1,"Av. Brasil",3195,null,"Sol Poente","RO","Alto Paraíso",76862000,"(69) 98467-8766",6935366658,null,"UNIR","Porto Velho - RO",null,"Laurindo Rebelo ","Escola da Rede Estadual","08/2018","Alto Paraíso - RO","Professor","07/2017",null,null,null,"---",null,null,1,"Matemática ","02/2003","12/2008",1,3,"Especialização em ciências da terra","06/2012","06/2014",1,10,"Aprovado"]
[1231,"870.308.292-04","FELIPE OLIVEIRA COLEN","felipecolen@gmail.com","31/03/1986 00:00:00","MG","Montes Claros","BRASIL","M",1,1,"Rua José Camacho ",2333,"casa 04","São João Bosco","RO","Porto Velho",76803770,"(69) 98105-4650",6933016274,null,"UNIR","Porto Velho - RO",null,"Tribunal de Justiça","Outro tipo de estabelecimento",null,"Porto Velho - RO","Analista de sistemas","03/2017",null,null,null,"---",null,null,"2b","Sistemas para internet","02/2010","08/2012",1,3,"Engenharia de sistemas","01/2013","08/2014",1,"AUSENTE","Aprovado"]
[12452,"017.859.592-63","FERNANDO REIS DE CARVALHO","reis.fernando1@hotmail.com","06/12/1993 00:00:00","RO","Porto Velho","BRASIL","M",5,1,"Rua Inácio Cavalcante",1945,"Apartamento 3","Nova Floresta","RO","Porto Velho",76807220,"(69) 99216-8735",null,null,"UNIR","Porto Velho - RO",null,null,"---",null,null,null,null,null,null,null,"---",null,null,null,null,null,null,null,null,null,null,null,null,16,"Aprovado"]
[7895,"012.828.382-37","FLAMARION GONCALVES BLODOW","flamarion.blodow@gmail.com","14/01/1993 00:00:00","RO","Porto Velho","BRASIL","M",5,1,"Rua Raimundo Cantuária","N. 6430",null,"Lagoinha","RO","Porto Velho",76829674,"(69) 99353-9810",null,null,"UNIR","Porto Velho - RO",null,null,"---",null,null,null,null,null,null,null,"---",null,null,null,null,null,null,null,null,null,null,null,null,19,"Aprovado"]
[1794,"326.454.492-04","FRANCISCO LOPES DA SILVA","f19lopes@gmail.com","19/02/1970 00:00:00","RO","Porto Velho","BRASIL","M",1,1,"Rua Rio Machado",525,"RUA RIO MACHADO","TRIANGULO","RO","Porto Velho",76805788,"(69) 99272-8125",null,null,"UNIR","Porto Velho - RO",null,null,"---",null,null,null,null,null,null,null,"---",null,null,null,null,null,null,null,null,null,null,null,null,9,"Aprovado"]
[11983,"776.531.062-34","FRANCISCO PEREIRA COELHO JUNIOR","chicaov6@hotmail.com","24/08/1985 00:00:00","RO","Porto Velho","BRASIL","M",1,1,"Rua Jardins","08","Condomínio Amarílis","Bairro Novo","RO","Porto Velho",76000000,"(69) 99278-6851","(69) 32274544",null,"UNIR","Porto Velho - RO",null,"Centro Educacional Dr. Gilberto Mendes de Azevedo","Escola Privada",null,"Porto Velho - RO","Professor","03",null,null,null,"---",null,null,1,"Licenciatura Plena em Matemática","02","07",1,2,"Direito","08",null,2,13,"Aprovado"]
[17752,"188.563.574-53","FRANCISCO SALES PEREIRA","sales.rm@hotmail.com","13/11/1954 00:00:00","RO","Rolim de Moura","BRASIL","M",1,1,"Rua Brasflorest",5800,"Casa 55","Jardim Tropical","RO","Rolim de Moura",76940000,"(69) 99272-8544",null,"(69) 34426168","UNIR","Porto Velho - RO",null,null,"Escola da Rede Estadual","09/2017","ROLIM DE MOURA - RO","PROFESSOR","03/2002",null,null,null,"---",null,null,1,"LICENCIATURA PLENA EM MATEMÁTICA","06/1988","01/1991",1,3,"ESPECIALIZAÇÃO EM MATEMÁTICA","05/1999","12/1999",1,13,"Aprovado"]
[4396,"022.400.872-26","GECIANE BATISTA DE LIMA","gecianebatista26@gmail.com","27/11/1995 00:00:00","RO","Presidente Médici","BRASIL","F",5,1,"Rua Ji Paraná - de 1721/1722 a 2177/2178",1835,"AP 01","Jardim Clodoaldo","RO","Cacoal",76963626,"(69) 99977-0417",null,34416828,"UNIR","Porto Velho - RO",null,null,"---",null,null,null,null,null,null,null,"---",null,null,null,null,null,null,null,null,null,null,null,null,7,"Desclassificado"]
[8859,"408.304.112-91","GENOVEVA URUPINA GONZALES SILVESTRE GOESE","genovevagoese@gmail.com","11/09/1972 00:00:00",null,null,"BRASIL","F",1,1,"Rua Antônio Deodato Durce - de 1253/1254 a 1645/1646",1636,null,"Centro","RO","Cacoal",76963778,"(69) 98449-2142",6934413431,null,"UNIR","Porto Velho - RO",null,"E.E.E.F. Carlos Gomes","Escola da Rede Estadual",null,"Cacoal - RO","Professora Nível 3","04/1997",null,null,null,"---",null,null,1,"Matemática","08/2014","07/2016",1,2,"Ciências Contábeis com Esquema I ","08/1992","12/1996",1,"AUSENTE","Aprovado"]
[21688,"818.285.432-68","GILVANA SILVA PONTES","gilvana_pontes@hotmail.com","01/02/1986 00:00:00","RO","Porto Velho","BRASIL","F",1,1,"RUA SECUNDARIA , 1540","CASA 12 QUADRA D","CONDOMINIO NOVA ERA 1","NOVO HORIZONTE","RO","Porto Velho",76810164,"(69) 99213-7799",null,null,"UNIR","Porto Velho - RO",null,null,"Escola da Rede Estadual",null,null,null,null,null,null,null,"---",null,null,1,"MATEMÁTICA","02/2004","07/2007",1,3,"EDUCAÇÃO MATEMÁTICA",null,null,1,13,"Aprovado"]
[227,"037.869.956-30","GLEICE ASSIS SA","beiks@hotmail.com","04/05/1978 00:00:00","MG","Coronel Fabriciano","BRASIL","F",3,1,"Rua Anel Viário",4078,"Casa","JARDIM ITÁLIA 2","RO","Cacoal",76962276,"(69) 98155-7542","(69)3443-2667",null,"UNIR","Porto Velho - RO",null,"FUNDAÇÃO BRADESCO","Escola Privada",null,"CACOAL - RO","PROFESSOR NÍVEL 2","01/2005","SEJUS - SECRETÁRIA DO ESTADO E JUSTIÇA","CACOAL - RO","AGENTE PENITENCIÁRIA","Escola da Rede Estadual","06/2010",null,3,"MATEMÁTICA E ESTATÍSTICA","03/2001","03/2002",1,1,"MATEMÁTICA","02/1997","07/2000",1,20,"Aprovado"]
[15689,"786.365.742-34","GUILHERME HENRIQUE ZANGRANDO","polisom@outlook.com","31/05/1984 00:00:00","PR","Palotina","BRASIL","M",3,1,"Neuza",6423,null,"Igarapé","RO","PORTO VELHO",76811600,"(69) 99240-2320",6932291177,6932291177,"UNIR","Porto Velho - RO",null,null,"---",null,null,null,null,null,null,null,"---",null,null,null,null,null,null,null,null,null,null,null,null,17,"Aprovado"]
[148,"385.917.402-97","HAILTON CESAR ALVES DOS REIS","notliah73@gmail.com","28/11/1973 00:00:00","PA","Belém","BRASIL","M",1,1,"Avenida JK - de 1860/1861 ao fim",1878,"PRÓXIMO AO IGARAPÉ 2 DE ABRIL","CASA PRETA","RO","Ji-Paraná",76907644,"(69) 99922-2725",6934222663,null,"UNIR","Porto Velho - RO",null,"FUNDAÇÃO UNIVERSIDADE FEDERAL DE RONDÔNIA","Escola da Rede Federal",null,"JI-PARANÁ - RO","TÉCNICO EM TECNOLOGIA DA INFORMAÇÃO","07/2007","GOVERNO DO ESTADO DE RONDÔNIA","JI-PARANÁ - RO","PROFESSOR DE MATEMÁTICA NÍVEL 3","Escola da Rede Estadual","07/2017",null,1,"MATEMÁTICA","01/2000","12/2004",1,3,"EDUCAÇÃO MATEMÁTICA","01/2006","12/2008",1,8,"Desclassificado"]
[8306,"001.086.962-00","HUMBERTO RODRIGUES","humberto-rodrigues20@hotmail.com","31/03/1990 00:00:00","RO","Espigao do Oeste","BRASIL","M",1,1,"AV. projetada B",2079,"CASA ","PARQUE DOS BURITIS","RO","CACAOL",76968899,"(69) 98473-5983",69999798787,69999351345,"UNIR","Porto Velho - RO",null,null,"---",null,null,null,null,null,null,null,"---",null,null,null,null,null,null,null,null,null,null,null,null,6,"Desclassificado"]
[23622,"010.428.032-85","ISMAEL CARLOS RODRIGUES","laracroft365@hotmail.com","01/10/1986 00:00:00","RO","Espigão D","BRASIL","M",5,1,"Rua Maranhão",2470,"Subesqeuina com a Rua bahia","Morada do Sol","RO","Espigão D",76974000,"(69) 98432-8032",null,69993464226,"UNIR","Porto Velho - RO",null,"Prefeitura Municipal de Espigão do Oeste (Secretaria de Saúde)","Outro tipo de estabelecimento","08/2017","Espigão do Oeste - RO","Agente Comunitário de Saúde","07/2012","Câmara Municipal de Vereadores de Espigão do Oeste","Espigâo do Oeste - RO","Assessor Legislativo","Outro tipo de estabelecimento","09/2009","06/2012",1,"Licenciatura Plena em Matemática","08/2011","08/2015",1,null,null,null,null,null,"AUSENTE","Aprovado"]
[21972,"387.137.052-53","IVANI VALENTIM DA SILVA","lange.am@uol.com.br","06/08/1973 00:00:00","RO","JARÚ","BRASIL","M",5,1,"RUA RIO DOS POMBOS",450,null,"VILA NOVA","AM","APUÍ",69265000,"(97) 99158-2979",null,null,"UNIR","Porto Velho - RO",null,null,"---",null,null,null,null,null,null,null,"---",null,null,null,null,null,null,null,null,null,null,null,null,13,"Aprovado"]
[7691,"026.279.452-70","JEAN CARLOS GUALBERTO","jeancarlosvha@hotmail.com","19/02/1996 00:00:00","RO","Vilhena","BRASIL","M",5,1,"Rua 908",6319,"Rua 908","Boa Esperança","RO","Vilhena",76980000,"(69) 99959-1294",null,null,"UNIR","Porto Velho - RO",null,null,"---",null,"Vilhena - RO",null,null,null,"Vilhena - RO",null,"---",null,null,1,"Matemática","03/2015",null,3,null,null,null,null,null,"AUSENTE","Aprovado"]
[2914,"792.213.602-10","JEFFERSON ALENCAR DO NASCIMENTO VIEIRA","jeffersonariquemes@gmail.com","10/01/1986 00:00:00","RO","Ariquemes","BRASIL","M",3,1,"Rua Santa Catarina",3974,"2ª rua","Setor 05","RO","Ariquemes",76875512,"(69) 98116-0530",69993850496,null,"UNIR","Porto Velho - RO",null,"FUNDAÇÃO UNIVERSIDADE FEDERAL DE RONDÔNIA - UNIR","Outro tipo de estabelecimento",null,"ARIQUEMES - RO","ASSISTENTE EM ADMINISTRAÇÃO","08/2008",null,null,null,"---",null,null,1,"MATEMÁTICA","11/2008","12/2011",1,3,"EDUCAÇÃO MATEMÁTICA COM ÊNFASE EM MATEMÁTICA FINANCEIRA","11/2011","02/2013",1,13,"Aprovado"]
[22077,"649.237.202-63","JEFFERSON ANTONIO DOS SANTOS","jefferson.santos@ifro.edu.br","23/09/1980 00:00:00","RO","ji-paraná","BRASIL","M",1,1,"rua antonio galha",237,"APTO 06","URUPÁ","RO","JI-PARANÁ",76900231,"(69) 99226-0959",null,null,"UNIR","Porto Velho - RO",null,null,"---",null,null,null,null,null,null,null,"---",null,null,null,null,null,null,null,null,null,null,null,null,11,"Aprovado"]
[5820,"906.242.202-06","JÉSSICA GUERREIRO BANDEIRA","jessicah.guerreiro@gmail.com","21/09/1987 00:00:00","RO","Porto Velho","BRASIL","F",5,1,"Avenida Vigésima",6134,"BL E, APT. 101","Rio Madeira","RO","Porto Velho",76821436,"(69) 8121-0683",6930265358,6932171160,"UNIR","Porto Velho - RO",null,"TRIBUNAL DE JUSTIÇA DO ESTADO DE RONDÔNIA","Outro tipo de estabelecimento",null,"PORTO VELHO - RO","TÉCNICO JUDICIÁRIOO","06/2009",null,null,null,"---",null,null,1,"MATEMÁTICA","03/2008","03/2012",1,null,null,null,null,null,13,"Aprovado"]
[5830,"096.971.936-14","JHONY TIENE PEREIRA JÚNIOR","jhonytpereira@gmail.com","14/12/1988 00:00:00","MG","Barbacena","BRASIL","M",6,1,"Jorge teixeira",3986,"AP 203, Bl 11, Vila 14 bis","industrial","RO","Porto Velho",76821990,"(69) 99939-8018","(69) 32119850","(69) 32119856","UNIR","Porto Velho - RO",null,null,"Outro tipo de estabelecimento",null,"PORTO VELHO - RO","MILITAR","07/2009",null,null,null,"---",null,null,2,"ENGENHARIA CIVIL","01/2013","12/2017",3,null,null,null,null,null,15,"Aprovado"]
[23117,"502.197.233-20","JOSÉ AMADEU DE LIMA","amadeuexatas@gmail.com","11/08/1973 00:00:00","CE","SÃO JOÃO DO JAGUARIBE","BRASIL","M",1,1,"RUA GONÇALVES DIAS","CASA PRÓPRIA",null,"UNIÃO","RO","Candeias do Jamari",76860000,"(69) 98137-2803","06932301037",null,"UNIR","Porto Velho - RO",null,null,"---",null,null,null,null,null,null,null,"---",null,null,null,null,null,null,null,null,null,null,null,null,12,{"$f":"IF(AU71>=9,\"Aprovado\",\"Desclassificado\")","v":"Aprovado"}]
[23745,"065.008.279-61","JOSÉ CARLOS AMORIM","amorim_matematica@hotmail.com","28/12/1987 00:00:00","PR","Nova Olímpia","BRASIL","M",1,1,"RUA PRIMO AMARAL",2332,"CASA","SETOR 03","RO","Buritis",76880000,"(69) 99277-7226",null,null,"UNIR","Porto Velho - RO",null,"E.E.E.F.M.MARIADE ABREU BIANCO","Escola da Rede Estadual",null,"BURITIS - RO","VICE-DIRETOR","03/2010",null,null,null,"---",null,null,1,"matemática","01/2006","12/2009",1,3,null,null,null,null,"AUSENTE","Aprovado"]
[18023,"478.493.982-20","JOSE CARLOS DE ALMEIDA","jkarlosalmeida@gmail.com","28/12/1971 00:00:00","RO","Ariquemes","BRASIL","M",6,1,"RUA NATAL",2689,"2 RUA","SETOR 03","RO","Ariquemes",78932000,"(69) 99906-7589",null,null,"UNIR","Porto Velho - RO",null,"EEEMTI HEITOR VILLA LOBOS","Escola da Rede Estadual",null,"ARIQUEMES - RO","PROFESSOR","06/2013",null,null,null,"Escola da Rede Estadual",null,null,1,"MATEMÁTICA","08/2006","07/2010",1,3,"EDUCAÇÃO MATEMÁTICA","02/2011","12/2011",1,"AUSENTE","Aprovado"]
[2137,"030.307.384-50","JOSE CARLOS DE MEDEIROS","jga.coruja@hotmail.com","06/08/1978 00:00:00","PB","Várzea","BRASIL","M",3,1,"AV Alexandre Guimarães",3971,"Casa 02","Nova Porto  Velho","RO","Porto Velho",76820191,"(69) 99212-7750",6932223822,null,"UNIR","Porto Velho - RO",null,"Estado de Rondonia","Outro tipo de estabelecimento","08/2017","Porto Velho - RO","Agente de Polcia","08/2010",null,null,null,"---",null,null,1,"Matemática","08/2002","07/2006",1,2,"Engenharia Elética","08/2010","12/2017",3,10,"Aprovado"]
[5863,"711.668.902-87","JOSÉ CLEUTON SILVA DE SOUZA","josecleuton_2010@hotmail.com","04/07/1977 00:00:00","AM","Lábrea","BRASIL","M",6,1,"Rua José Lima",2553,"casa","BARRA LIMPA","AM","Lábrea",69830000,"(97) 99158-8989",null,null,"UNIR","Porto Velho - RO",null,"IFAM- INSTITUTO FEDERAL DE EDUCAÇÃO,CIÊNCIA E TECNOLOGIA DO AMAZONAS","Escola da Rede Federal",null,"Lábrea - AM","Professor","04/2012",null,null,null,"---",null,null,1,"MATEMÁTICA","01/2002","08/2005",1,3,"Especialização em Educação Matemática","05/2008","08/2009",1,12,"Aprovado"]
[3966,"516.988.462-15","JOSÉ DE ARIMATÉIA DE SOUZA BERNALDINO","josearimateiab@hotmail.com","23/01/1982 00:00:00","RO","Porto Velho","BRASIL","M",1,1,"RUA ANARI",5358,"BL.4 APTO 503 COND. VITA BELLA","FLORESTA","RO","Porto Velho",76806078,"(69) 99201-3241",null,null,"UNIR","Porto Velho - RO",null,"FACULDADES INTEGRADAS APARÍCIO CARVALHO","Outro tipo de estabelecimento","08/2017","PORTO VELHO - RO","PROFESSOR DE ENSINO SUPERIOR","02/2012",null,null,null,"---",null,null,1,"Matemática","02/2001","08/2005",1,3,"Especialização em Ensino de Matemática","03/2007","12/2007",1,12,"Aprovado"]
[19952,"036.175.662-35","JOSE RAFAEL DA SILVA FERREIRA","joserafaeldasilvaferreira@gmail.com","31/12/1995 00:00:00","RO","Nova Brasilandia","BRASIL","M",5,1,"Lh 21 Km 18 Sul",993712209,993028754,"Zona rural","RO","Nova Brasilândia",76958000,"(69) 99302-8754",69993028754,null,"UNIR","Porto Velho - RO",null,null,"---",null,null,null,null,null,null,null,"---",null,null,null,null,null,null,null,null,null,null,null,null,11,"Aprovado"]
[4674,"718.320.923-72","JOSÉ ROBERTO OLIVEIRA","roberyan13@gmail.com","06/03/1977 00:00:00","MA","Vargem Grande","BRASIL","M",1,1,"RUA RAIMUNDO CANTUÁRIA",2424,null,"MATO GROSSO","RO","Porto Velho",76804416,"(69) 98161-7173",null,"(69) 32205249","UNIR","Porto Velho - RO",null,"ESCOLA ESTADUAL DE ENSINO FUNDAMENTAL E MÉDIO","Escola da Rede Estadual",null,"PORTO VELHO - RO","PROFESSOR","11/2016",null,null,null,"---",null,null,1,"LICENCIATURA EM CIÊNCIAS COM HABILITAÇÃO EM MATEMÁTICA","01/2004","02/2007",1,null,null,null,null,null,9,"Aprovado"]
[1306,"026.413.204-10","JOSIEUDO PEREIRA GAIÃO","engojosieudo@gmail.com","31/01/1977 00:00:00","PB","Campina Grande","BRASIL","M",1,1,"R. Cipriano Gurgel",3512,"Bloco F - Ap 202","Industrial","RO","Porto Velho",76821020,"(69) 99263-6555","69 3221 1794",null,"UNIR","Porto Velho - RO",null,"Faculdade Metropolitana","Escola Privada",null,"Porto Velho - RO","Professor","02/2016","Eletrobras Distribuição Rondônia","Porto Velho - RO","Engenheiro","Outro tipo de estabelecimento","08/2016",null,2,"Engenharia Elétrica","01/2001","11/2006",1,null,null,null,null,null,16,"Aprovado"]
[22747,"350.563.472-72","JOSILANE MARTINS BICALHO","josilanebicalho@hotmail.com","22/08/1971 00:00:00","MG","São João do Oriente","BRASIL","F",5,1,"Rua Dom Paulo Evaristo Arns",302,null,"União","RO","Ouro Preto do Oeste",76920000,"(69) 99218-5204","69 3461 2365",null,"UNIR","Porto Velho - RO",null,"Escola Joaquim de Lima Avelino","Escola da Rede Estadual",null,"Ouro Preto do Oeste - RO","Professora","04/1992",null,null,null,"---",null,null,2,"Ciências Contábeis","08/1992","12/1996",1,3,"Gestão Empresarial","04/2004","05/2005",1,9,"Aprovado"]
[6072,"778.398.622-68","JULIANO NOBUMICHI TANABE","juliano_samurai@hotmail.com","05/08/1985 00:00:00","RO","Porto Velho","BRASIL","M",5,1,"Rua Vila Nova Artigas",3055,"CASA","Juscelino Kubitschek","RO","Porto Velho",76829430,"(69) 99232-7959","69 32275061",null,"UNIR","Porto Velho - RO",null,"BANCO DO BRASIL","Outro tipo de estabelecimento",null,"PORTO VELHO - RO","ESCRITURARIO","10/2012",null,null,null,"---",null,null,2,"economia ","04/2003","12/2007",1,null,null,null,null,null,6,"Desclassificado"]
[895,"471.037.792-87","JULIOMAR REIS PENNA","juliomarp@yahoo.com.br","17/12/1974 00:00:00","MT","Cáceres","BRASIL","M",5,1,"Rua Rio Grande - até 1336/1337",1310,null,"Liberdade","RO","Cacoal",76967454,"(69) 98116-4063",null,6934418146,"UNIR","Porto Velho - RO",null,"EEEFM CELSO FERREIRA DA CUNHA","Escola da Rede Estadual",null,"CACOAL - RO","PROFESSOR","03/2014",null,null,null,"---",null,null,1,"MATEMÁTICA","01/2000","05/2005",1,2,"CIENCIAS CONTÁBEIS","03/2017",null,3,"AUSENTE","Aprovado"]
[2739,"860.714.082-53","JUNIA DE SOUZA LOPES","junia_ro@hotmail.com","11/06/1987 00:00:00","RO","Nova Brasilândia D'Oeste","BRASIL","F",5,1,"Rua João José dos Santos",2099,null,"Residencial Parque Brizon","RO","Cacoal",76962252,"(69) 99961-8873",null,null,"UNIR","Porto Velho - RO",null,null,"---",null,null,null,null,null,null,null,"---",null,null,null,null,null,null,null,null,null,null,null,null,10,"Aprovado"]
[1157,"822.506.342-20","JUNIOR SANTOS DE ARAUJO","jrsemtran@gmail.com","14/05/1986 00:00:00","RO","Porto Velho","BRASIL","M",1,1,"GERALDO SIQUEIRA",4325,"PROXIMO AO COMERCIAL ATLANTA","CALADINHO","RO","Porto Velho",76808215,"(69) 99203-3885","(69) 3213-2004",null,"UNIR","Porto Velho - RO",null,null,"---",null,null,null,null,null,null,null,"---",null,null,null,null,null,null,null,null,null,null,null,null,6,"Desclassificado"]
[12503,"835.884.772-68","KARINA JOSÉ DA SILVA","karinajoses@hotmail.com","21/01/1987 00:00:00","RO","Cacoal","BRASIL","F",5,1,"ANTONIO JOÃO",798,"CASA","NOVO CACOAL","RO","Cacoal",76962188,"(69) 99228-9919",6934416960,null,"UNIR","Porto Velho - RO",null,"celso ferreira da cunha","Escola da Rede Estadual",null,"CACOAL - RO","professor","04/2017","FUNDAÇÃO BRADESCO","CACOAL - RO","PROFESSOR","Escola Privada","03/2013",null,1,"matematica","07/2008","12/2011",1,null,null,null,null,null,"AUSENTE","Aprovado"]
[860,"408.643.242-00","LAERCIO DAVID SIQUEIRA TRINDADE","laerciotrindade69@gmail.com","19/09/1970 00:00:00","RO","Porto Velho","BRASIL","M",1,1,"Jacy Paraná ",2134,null,"Mato grosso","RO","Porto Velho",76804418,"(66) 98404-5223",null,null,"UNIR","Porto Velho - RO",null,"Jorge teixeira","Escola da Rede Estadual",null,"Porto Velho - RO","Professor","11/2016",null,"Porto Velho - RO",null,"---",null,null,1,"Matemática ","02/2000","10/2004",1,3,"Matemática ","09/2005","11/2006",1,12,"Aprovado"]
[16105,"654.375.942-91","LAUDENEI CODOGNOTO","laudenei@uol.com.br","18/07/1980 00:00:00","PR","Loanda","BRASIL","M",5,2,"Rua Duque de Caxias - de 965/966 a 1222/1223",1223,null,"Centro","RO","Porto Velho",76801126,"(69) 98111-2281",null,6935339805,"UNIR","Porto Velho - RO",null,"IBGE","Outro tipo de estabelecimento",null,"PORTO VELHO - RO","ANALISTA DE PLANEJAMENTO","06/2010",null,null,null,"---",null,null,1,"MATEMÁTICA","01/1999","12/2002",1,null,null,null,null,null,20,"Aprovado"]
[588,"657.202.612-49","LAUDICÉIA RIBEIRO PEREIRA","laud.r@hotmail.com","19/11/1980 00:00:00","PR","Cascavel","BRASIL","F",5,1,"AV. RIO BRANCO",5209,"CASA","CENTRO","RO","Rolim de Moura",76940000,"(69) 98410-1658","(69) 3442-3654",null,"UNIR","Porto Velho - RO",null,null,"---",null,null,null,null,null,null,null,"---",null,null,null,null,null,null,null,null,null,null,null,null,"AUSENTE","Aprovado"]
[7318,"422.755.392-04","LAZARO CARVALHO DA COSTA","laio.20@hotmail.com","12/02/1973 00:00:00","RO","Porto Velho","BRASIL","M",5,1,"Rua Abunã - de 2151 a 2473 - lado ímpar",2363," ENTRE JOÃO GULAR E GUANABARA","São João Bosco","RO","Porto Velho",76803763,"(69) 99282-1180",6932210873,96992821180,"UNIR","Porto Velho - RO",null," INSTITUTO EVANGÉLICO PAUL AENIS","Escola Privada","08/2017","Porto velho - RO","PROFESSOR","02/2017",null,null,null,"---",null,null,1,"Matemática","10/2002","09/2006",1,null,null,null,null,null,18,"Aprovado"]
[20080,"302.176.792-34","LÉIA FERREIRA SAMPAIO","leia.f.sampaio@hotmail.com","20/02/1967 00:00:00","RO","Cacoal","BRASIL","F",1,1,"Rua Ademar Bento da Silva - de 3506 a 3700 - lado par",3492,"Casa","Floresta","RO","Cacoal",76965771,"(69) 98478-7532","(69) 3441-6929",34411067,"UNIR","Porto Velho - RO",null,"E.E.E.F.M Bernardo Guimarães","Escola da Rede Estadual","08/2017","Cacoal - RO","Professora","25/0219",null,null,null,"---",null,null,1,"Licenciatura  Plena Matemática","02/2000","08/2004",1,null,null,null,null,null,"AUSENTE","Aprovado"]
[6734,"003.205.502-14","LORENA PAULA MENDONÇA GUEDES","lorenguedes@gmail.com","02/10/1992 00:00:00","RO","Porto Velho","BRASIL","F",5,1,"Beco da Embratel","06",null,"Centro","RO","Porto Velho",76801014,"(69) 99243-5475",null,null,"UNIR","Porto Velho - RO",null,null,"---",null,null,null,null,null,null,null,"---",null,null,null,null,null,null,null,null,null,null,null,null,5,"Desclassificado"]
[10428,"701.324.372-87","LUCIENE DIAS PEREIRA","lucienepereiravenancio@gmail.com","08/05/1983 00:00:00","RO","Jaru","BRASIL","F",3,1,"Rua Lindaura Augusta",1651,"Loteamento Luzia Abranches","setor 15","RO","Jaru",76890000,"(69) 99216-3700",null,6935212238,"UNIR","Porto Velho - RO",null,null,"---",null,null,null,null,null,null,null,"---",null,null,null,null,null,null,null,null,null,null,null,null,3,"Desclassificado"]
[4380,"942.400.197-53","LUIS CLAUDIO KAIRUZ PEREIRA","engnavalmb@yahoo.com","12/09/1967 00:00:00","RJ","Rio de Janeiro","BRASIL","M",6,1,"Rua Duque de Caxias",2771,"Bloco 1- Apt. 201","São Cristóvão","RO","Porto Velho",76804018,"(21) 98694-7829","(21) 30429006",null,"UNIR","Porto Velho - RO",null,null,"---",null,null,null,null,null,null,null,"---",null,null,null,null,null,null,null,null,null,null,null,null,"AUSENTE","Aprovado"]
[6771,"014.810.032-59","LUIZ ANTONIO DOS SANTOS MAGALHÃES","luiz_nbo@hotmail.com","14/02/1997 00:00:00","RO","São Francisco do Guaporé","BRASIL","M",5,1,"RUA TIRADENTES",2671,null,"ALTO ALEGRE","RO","São Francisco do Guaporé",76935000,"(69) 98489-0703",null,null,"UNIR","Porto Velho - RO",null,null,"---",null,null,null,null,null,"SÃO FRANCISCO DO GUAPORE - RO",null,"---",null,null,1,"LICENCIATURA EM MATEMÁTICA","02/2014","12/2016",1,3,"ENSINO DE MATEMÁTICA","02/2016","12/2016",3,12,"Aprovado"]
[13880,"544.923.789-87","MANOEL MESSIAS MENDES DA SILVA","messiass501@gmail.com","02/07/1965 00:00:00","MG","Januária","BRASIL","M",1,1,"Av Goiás ",7581,"CORREIOS","Embratel","RO","Vilhena",76986586,"(69) 98494-5975",null,"69 984854609","UNIR","Porto Velho - RO",null,"EEEFM COLINA VERDE/ GOVERNO DO ESTADO DE RONDONIA","Escola da Rede Estadual",null,"Corumbiara - RO","PROFESSOR ENSINO FUNDAMENTAL E MEDIO","04/1997",null,null,null,"---",null,null,1,"MATEMATICA","01/2000","01/2004",1,3,"GESTÃO ESCOLAR","05/2002","09/2004",1,8,"Desclassificado"]
[17825,"132.422.228-06","MARCELO MARTINS FARIAS","marcelomartinsfarias@gmail.com","21/06/1972 00:00:00","RO","Machadinho D","BRASIL","M",1,1,"RUA VILLA LOBOS",4249,null,"DAS NAÇÕES","RO","Machadinho D",76868000,"(69) 98458-9916",null,null,"UNIR","Porto Velho - RO",null,"EEEFM ALBERTO NEPOMUCENO","Escola da Rede Estadual","07/2017","MACHADINHO D'OESTE - RO","PROFESSOR","07/2015",null,null,null,"---",null,null,1,"matemática","01/2012","12/2014",1,null,null,null,null,null,"AUSENTE","Aprovado"]
[26013,"593.669.742-87","MARCOS APARECIDO DOS SANTOS","marcosulthor@hotmail.com","17/03/1978 00:00:00","RO","Ji-Paraná","BRASIL","M",5,1,"Rua Sebastião Geraldo",3587,"Casa","JK","RO","Ji-Paraná",76909706,"(69) 99222-0903","(69) 3424 1628","(69) 3422 1446","UNIR","Porto Velho - RO",null,"Beatriz Ferreira da Silva","Escola da Rede Estadual","09/2013","Ji-Paraná - RO","Professor","07/2013","Antônio Bianco","Ji-Paraná - RO","Professor","Escola da Rede Estadual","08/2013","09/2013",1,"Matemática","02/2003","12/2006",1,null,null,null,null,null,"AUSENTE","Aprovado"]
[2532,"078.451.289-29","MARCOS CORDEIRO JUNIOR","marcoscordeirojr@hotmail.com","10/04/1990 00:00:00","SC","Fraiburgo","BRASIL","M",5,1,"Rua Valdemar Estrela",5572,null,"Rio Madeira","RO","Porto Velho",76821346,"(69) 99223-7052",null,null,"UNIR","Porto Velho - RO",null,null,"---",null,null,null,null,null,null,null,"---",null,null,null,null,null,null,null,null,null,null,null,null,14,"Aprovado"]
[45,"944.270.972-00","MARCUS VINÍCIUS OLIVEIRA BRAGA","marcusvobraga@hotmail.com","06/08/1989 00:00:00","RO","Porto Velho","BRASIL","M",5,1,"RUA URUGUAI",1379,null,"NOVA PORTO VELHO","RO","Porto Velho",76820132,"(69) 99224-6972",null,null,"UNIR","Porto Velho - RO",null,null,"---",null,null,null,null,null,null,null,"---",null,null,1,"MATEMÁTICA","03/2009","03/2013",1,3,"ENSINO DE MATEMÁTICA",null,null,1,"AUSENTE","Aprovado"]
[23185,"283.709.022-00","MARIA DAS GRAÇAS FRAGA","claudiomeubem@gmail.com","17/06/1964 00:00:00","RO","JI-PARANÁ ","BRASIL","F",1,1,"RUA DR. ANTONIO LAZARO DE MOURA",1752,null,"PRESIDENCIAL","RO","JI-PARANA",76901126,"(69) 99952-0952",null,"69 99358 5068","UNIR","Porto Velho - RO",null,null,"---",null,null,null,null,null,null,null,"---",null,null,null,null,null,null,null,null,null,null,null,null,6,"Desclassificado"]
[25875,"471.326.121-15","MARIA DE JESUS GOMES COSTA","jesuslourdes2011@hotmail.com","17/09/1970 00:00:00","TO","xambioa","BRASIL","F",5,1,"RUA MONET ",135,"CONDOMINIO VILLA ROMANA","PEDRINHAS","RO","PORTO VELHO",76801442,"(69) 99281-0679","69 32101915","69 32119014","UNIR","Porto Velho - RO",null,null,"---",null,null,null,null,null,null,null,"---",null,null,null,null,null,null,null,null,null,null,null,null,3,"Desclassificado"]
[3002,"920.618.341-91","MARIA IZABEL DA SILVA AMORIM ","mizabels.2009@yahoo.com.br","20/05/1981 00:00:00","GO","Itumbiara","BRASIL","F",1,1,"Rua. Eduardo Lima e Silva",1744,"Ap. 102","Agenor de Carvalho","RO","Porto Velho",76820372,"(69) 98141-3422","(69) 3222-4973","(69) 3222-3810","UNIR","Porto Velho - RO",null,"Colégio Adventista de Porto Velho","Escola Privada",null,"Porto Velho - RO","Professora ","01/2013",null,null,null,"---",null,null,1,"licenciatura plena em matemática","02/2003","12/2006",1,3,"metodologia do ensino superior","12/2013","07/2014",3,16,"Aprovado"]
[18699,"161.690.932-34","MARIA WALDEMIRA DOS SANTOS RAMOS","wldemiraramos@bol.com.br","12/03/1966 00:00:00","RO","Porto Velho","BRASIL","F",5,1,"CONJUNTO 04 DE JANEIRO",5417,null,"FLODOALDO PONTES PINTO","RO","Porto Velho",76820625,"(69) 99336-5741",6932290423,6932298265,"UNIR","Porto Velho - RO",null,"ESCOLA ESTADUAL DE ENSINO MÉDIO MAJOR GUAPINDAIA","Escola da Rede Estadual",null,"PORTO VELHO - RO","PROFESSORA","02/2004",null,null,null,"---",null,null,1,"LICENCIATURA PLENA EM MATEMÁTICA","02/1994","12/1997",1,null,null,null,null,null,12,"Aprovado"]
[3392,"634.491.962-00","MARIO LAELIO ALVES SILVA","laelioalves27@gmail.com","21/12/1979 00:00:00","RO","Porto Velho","BRASIL","M",5,1,"Rua Raimundo Nonato da Silva",689,"CASA","Baixa União","RO","Porto Velho",76805852,"(69) 99348-1230",null,null,"UNIR","Porto Velho - RO",null,null,"---",null,null,null,null,null,null,null,"---",null,null,1,"MATEMATICA","02/2017","12/2012",1,null,null,null,null,null,12,"Aprovado"]
[3979,"245.006.312-91","MARIVALDO RODRIGUES LISBOA","rodrigues.100.lisboa@hotmail.com","09/02/1967 00:00:00","PA","Belém","BRASIL","M",1,1,"Avenida Prefeito Chiquilito Erse",5064,"BLOCO 2 AP: 201","Nova Esperança","RO","Porto Velho",76821510,"(69) 98115-9249","69 32224047",null,"UNIR","Porto Velho - RO",null,"EEEB PROF JOÃO BENTO DA COSTA","Escola da Rede Estadual","08/2017","PORTO VELHO - RO","PROFESSOR","02","CENTRO DE ENSINO CLASSE A","PORTO VELHO - RO","PROFESSOR","Escola Privada","02/2007","08/2017",1,"matemática","08/2002","12/2007",1,null,null,null,null,null,19,"Aprovado"]
[6907,"770.247.102-68","MAURÍCIO MALTA DE LIMA ","maumaurcc@gmail.com","30/08/1982 00:00:00","RO","Porto Velho","BRASIL","M",1,1,"Rua José Camacho ",2071,null,"São João Bosco ","RO","Porto Velho",76803740,"(69) 99209-7507",null,null,"UNIR","Porto Velho - RO",null,"Barão do Solimões ","Escola da Rede Estadual",null,"Porto Velho - RO","Professor","04/2011",null,null,null,"---",null,null,1,"Matemática ","02/2004","07/2008",1,null,null,null,null,null,15,"Aprovado"]
[14438,"852.638.342-68","MEIRILAM LIMA GUEDES","meirilam@hotmail.com","26/02/1985 00:00:00","RO","Ouro Preto do Oeste ","BRASIL","F",5,1,"RUA TUPY",2068,null,"SETOR 02","RO","Cacaulândia",76889000,"(69) 98108-4175",null,null,"UNIR","Porto Velho - RO",null,"E.E.E.F.M.FREI HENRIQUE DE COIMBRA","Escola da Rede Estadual",null,"CACAULÂNDIA - RO","PROFESSORA CLASSE C","02/2008",null,null,null,"---",null,null,1,"Licenciatura Plena em Matemática","02/2004","12/2007",1,null,null,null,null,null,9,"Aprovado"]
[14849,"014.015.892-86","MELLISSA MOURA DE ANDRADE","mellissa_jipa@hotmail.com","19/12/1994 00:00:00","RO","Ji-Paraná","BRASIL","F",5,2,"Rua sena Madureira",2670,null,"Cafezinho","RO","Ji-Paraná",76913093,"(69) 99296-1396",null,null,"UNIR","Porto Velho - RO",null,null,"---",null,null,null,null,null,null,null,"---",null,null,null,null,null,null,null,null,null,null,null,null,"AUSENTE","Aprovado"]
[18426,"036.361.811-22","MONNIKE YASMIN RODRIGUES DO VALE","monnike.vale@ifro.edu.br","06/10/1991 00:00:00","RO","Porto Velho","BRASIL","F",1,3,"Avenida Calama",5052,"AP D Fundos","Flodoaldo Pontes Pinto","RO","Porto Velho",76820595,"(69) 99355-1284",null,null,"UNIR","Porto Velho - RO",null,null,"---",null,null,null,null,null,null,null,"---",null,null,null,null,null,null,null,null,null,null,null,null,"AUSENTE","Aprovado"]
[6763,"999.183.909-72","NADIR SABINO BRITO","nadir-sabino@hotmail.com","26/11/1974 00:00:00","MS","Fátima do Sul","BRASIL","F",3,1,"RUA CEARÁ",4502,"CASA","LIBERDADE","RO","Alta Floresta D'Oeste",76954000,"(69) 99965-0639",null,null,"UNIR","Porto Velho - RO",null,null,"---",null,null,null,null,null,null,null,"---",null,null,null,null,null,null,null,null,null,null,null,null,"AUSENTE","Aprovado"]
[9053,"019.206.292-11","NATANAEL CAMILO DA COSTA","natanaelcostaunirjp@gmail.com","01/10/1993 00:00:00","RO","ROLIM DE MOURA","BRASIL","M",6,1,"Avenida Macapá",3543,"CASA","Alto alegre","RO","São Francisco do Guaporé",76936000,"(69) 98441-4049",null,346212580,"UNIR","Porto Velho - RO",null,"EMEF EUCLIDE DA CUNHA","Escola da Rede Municipal",null,"SÃO  FRANCISCO DO GUAPORÉ - RO","PROFESSOR DE MATEMÁTICA","08/2017","COLÉGIO CLARICE LISPECTOR","ROLIM DE MOURA - RO","PROFESSOR DE MATEMÁTICA","Escola Privada","10/2015","07/2017",1,"licenciatura em matemática ","06/2011","03/2017",1,null,null,null,null,null,18,"Aprovado"]
[8552,"198.195.362-00","NATANAEL RAMOS DE CAMPOS","crn.campos@hotmail.com","29/12/1965 00:00:00","PR","Cidade Gaúcha","BRASIL","M",1,1,"LINHA 32 SUL LOTE 17 GLEBA 10 SETOR MELGAÇO","XXXXXXX","CASA-ZONA RURAL A 6 KM DE P.BUENO ","XXXXXXXX","RO","Pimenta Bueno",78984000,"(69) 98493-8286",null,null,"UNIR","Porto Velho - RO",null,"ESCOLA INDÍGENA DE ENSINO FUNDAMENTAL E MÉDIO MATINA KONDÃ  CRE- P.BUENO","Escola da Rede Estadual",null,"PARECIS - RO","PROFESSOR","05/2013",null,null,null,"---",null,null,1,"matemática","01/2007","01/2010",1,3,"Docência do ensino superior","07/2012","07/2013",1,6,"Desclassificado"]
[17279,"614.301.532-53","NEILTON SÓRIA GALVÃO","neilton32@hotmail.com","11/06/1979 00:00:00","RO","Porto Velho","BRASIL","M",1,1,"Avenida Rio Madeira - de 4086 a 4272 - lado par",4086,"AP.804 BL.06  COND. AGUAS DO MADEIRA","Rio Madeira","RO","Porto Velho",76821300,"(69) 99216-5880",null,"69 3217 1158","UNIR","Porto Velho - RO",null,null,"---",null,null,null,null,null,null,null,"---",null,null,null,null,null,null,null,null,null,null,null,null,13,"Aprovado"]
[17775,"263.547.306-44","NESTOR DE SOUZA FREIRE","nestor62sf@gmail.com","12/05/1955 00:00:00","MG","Campos Gerais","BRASIL","M",1,1,"Rua dos Estudantes",582,null,"Bela Vista","RO","Ji-Paraná",76907668,"(69) 99217-9080",null,34234156,"UNIR","Porto Velho - RO",null,null,"---",null,null,null,null,null,null,null,"---",null,null,null,null,null,null,null,null,null,null,null,null,9,"Aprovado"]
[16943,"531.168.522-00","ODAILTON SILVA DOS SANTOS","gislaine-tavares@hotmail.com","01/12/1987 00:00:00","RO","Porto Velho","BRASIL","M",1,1,"R. JARDINS ",805," COND. DALIA CASA 154","BAIRRO NOVO","RO","Porto Velho",76817001,"(69) 99282-5976","69 32274941","69 32279687","UNIR","Porto Velho - RO",null," EEEFM JUSCELINO KUBITSCHEK DE OLIVEIRA","Escola da Rede Estadual",null,"PORTO VELHO - RO","PROFESSOR","06/2014",null,null,null,"---",null,null,1,"licenciatura plena em matematica","02/2006","12/2009",1,null,null,null,null,null,15,"Aprovado"]
[20660,"002.676.122-06","ORIDES DOS SANTOS SOARES JÚNIOR","soaresorides@hotmail.com","17/01/1992 00:00:00","RO","Porto Velho","BRASIL","M",5,1,"Rua Jamil Vilas Boas",358,"Casa","Duque de Caxias","RO","Ji-Paraná",76908018,"(69) 99217-3610",null,null,"UNIR","Porto Velho - RO",null,"Colégio União","Escola Privada",null,"Ji-Paraná - RO","Professor de Matemática","07/2017",null,null,null,"---",null,null,1,"Matemática","07/2009","07/2017",1,null,null,null,null,null,16,"Aprovado"]
[21920,"743.853.566-53","ORÍGENES JOSÉ GOMES JUNIOR","origenesjr@yahoo.com.br","20/12/1970 00:00:00","RO","Cacoal","BRASIL","M",6,1,"Rua Antônio Sérgio Gomes Barbosa",3547,"CASA","Village do Sol","RO","Cacoal",76964302,"(69) 99349-7943","(69)99274-3104",null,"UNIR","Porto Velho - RO",null,null,"---",null,null,null,null,null,null,null,"---",null,null,null,null,null,null,null,null,null,null,null,null,10,"Aprovado"]
[5325,"912.386.922-49","OSEIAS DAMASCENO DA SILVA ","oseiasdamasceno123@hotmail.com","12/08/1987 00:00:00","RO","Cacoal","BRASIL","M",5,1,"rua francisco patricio rodrigues ",4211,"casa","vilage sol ","RO","Cacoal",76964452,"(69) 99962-3088",69993551780,null,"UNIR","Porto Velho - RO",null,null,"Escola da Rede Estadual","07/2017",null,"professor","02/2017",null,null,null,"---",null,null,1,"matematica","08/2010","12/2013",1,2,"engenharia civil ","08/2016","09/2017",3,14,"Aprovado"]
[633,"807.194.142-53","OZIEL FALCÃO JANUÁRIO CARVALHO","ozcarvalho123@gmail.com","20/12/1984 00:00:00","RO","Porto Velho","BRASIL","M",1,1,"Rua Bartolomeu Pereira",2932,null,"Eletronorte","RO","Porto Velho",76808554,"(69) 99358-8723","(69) 32132442","(69) 993441577","UNIR","Porto Velho - RO",null,"E.E.E.F.M.Professor Eduardo Lima e Silva","Escola da Rede Estadual","08/2016","Porto Velho - RO","Professor","01/2011",null,null,null,"---",null,null,1,"Matemática.","02/2004","08/2007",1,null,null,null,null,null,14,"Aprovado"]
[19658,"850.652.932-87","PAULA OLIVEIRA DE SOUZA","paulaoliveiradesouza08@gmail.com","08/08/1985 00:00:00","BA","Salvador","BRASIL","F",5,1,"AVENIDA ARAXÁ","0515","CASA","JARDIM VERDE VIDA","RO","Monte Negro",76888000,"(69) 98113-3822",null,"(69) 3530-2153","UNIR","Porto Velho - RO",null,"E. E. E. F. M. MATO GROSSO","Escola da Rede Estadual",null,"MONTE NEGRO - RO","PROFESSORA","07/2013",null,null,null,"---",null,null,1,"LICENCIATURA PLENA EM MATEMÁTICA","03/2005","07/2008",1,3,"EDUCAÇÃO MATEMÁTICA COM ÊNFASE EM MATEMÁTICA FINANCEIRA","11/2011","02/2013",1,9,"Aprovado"]
[12956,"814.441.412-87","PAULO CHAVES RIQUE E SILVA","paulochavese@hotmail.com","17/03/1985 00:00:00","RO","Porto Velho","BRASIL","M",1,1,"Rua do Mercúrio ",3605,null,"Flodoaldo Pontes Pinto","RO","Porto Velho",76808152,"(69) 99257-7260",6932270142,null,"UNIR","Porto Velho - RO",null,"JOHN KENNEDY","Escola da Rede Estadual",null,"PORTO VELHO - RO","PROFESSOR",null,null,null,null,"---",null,null,1," MATEMÁTICA","03/2005","07/2008",1,2,"ECONOMIA","03/2006","12/2009",1,11,"Aprovado"]
[20852,"341.041.432-00","PAULO GUEDES DA SIILVA","qweguedess@yahoo.com.br","25/01/1968 00:00:00","RO","Porto Velho","BRASIL","M",1,1,"RUA JANAURA",2868,null,"ELETRONORTE","RO","Porto Velho",76808530,"(69) 99297-3291","069 32102718",null,"UNIR","Porto Velho - RO",null,"E.E.E.F.M. MADEIRA MAMORÉ","Escola da Rede Estadual",null,"PORTO VELHO - RO","PROFESSOR",null,"E.E.E.F.M. MADEIRA MAMORÉ","PORTO VELHO - RO","PROFESSOR","Escola da Rede Estadual",null,null,1,"matemática","03/2003","07/2007",1,1,"matemática",null,null,1,11,"Aprovado"]
[6636,"836.164.032-00","RAFAEL DA SILVA MOREIRA","rafaelmoreira.expert@gmail.com","12/01/1986 00:00:00","RO","Porto Velho","BRASIL","M",3,1,"Rua Antônio Maria Valença ",6577,null,"Aponia ","RO","Porto Velho",76824174,"(69) 99252-0865",null,null,"UNIR","Porto Velho - RO",null,null,"---",null,null,null,null,null,null,null,"---",null,null,null,null,null,null,null,null,null,null,null,null,3,"Desclassificado"]
[3471,"756.492.332-68","REGINALDO BARBOSA","re-barbosa@hotmail.com","06/08/1979 00:00:00","RO","Buritis","BRASIL","M",6,1,"RUA RODRIGUES ALVES","SN","Casa","SETOR 07","RO","Buritis",76880000,"(69) 99219-3768",6934123464,null,"UNIR","Porto Velho - RO",null,"Prefeitura Municipal de Alvorada do Oeste","Escola da Rede Municipal","12/2015","Alvorada do Oeste - RO","Professor 40 HRS","10/2013",null,"Alvorada do Oeste - RO",null,"---",null,null,1,"Matemática","06/2008","06/2011",1,null,null,null,null,null,11,"Aprovado"]
[24985,"657.509.772-34","REINALDO LIMA PEREIRA","rreeinaldo@gmail.com","18/07/1980 00:00:00","MA","Imperatriz","BRASIL","M",1,1,"Avenida Duque de Caxias",609,null,"Liberdade","RO","Ouro Preto do Oeste",76920000,"(69) 99257-4164",null,null,"UNIR","Porto Velho - RO",null,"Instituto Federal de Educação, Ciência e Tecnologia de Rondônia","Escola da Rede Federal",null,"Ji-Paraná - RO","professor","03/2016",null,null,null,"---",null,null,1,"MATEMÁTICA","02/2001","06/2005",1,2,"SISTEMAS DE INFORMAÇÃO","02/2008","12/2011",1,12,"Aprovado"]
[15474,"802.500.412-00","RENAN DA SILVA GRAVATÁ","renangravata@gmail.com","31/05/1986 00:00:00","RO","Porto velho","BRASIL","M",1,1,"Rua Principal",505,"Condomínio Parque dos Ipês","Novo Horizonte","RO","Porto Velho",76810160,"(69) 98454-3312","(69)32245360","(69)32165986","UNIR","Porto Velho - RO",null,null,"---",null,null,null,null,null,null,null,"---",null,null,null,null,null,null,null,null,null,null,null,null,12,"Aprovado"]
[12086,"996.664.802-04","RENATA LOPES DE SOUZA","renata_souzalopes@hotmail.com","20/07/1990 00:00:00","RO","Espigão D","BRASIL","F",5,1,"casa","03",null,"Cidade Nova","AM","Manaus",69095100,null,null,92981541196,"UNIR","Porto Velho - RO",null,"Marcantonio Vilaça II","Escola da Rede Estadual",null,"Manaus - AM","professor","02/2015",null,null,null,"---",null,null,3,"Ensino da Matemática","10/2012","04/2014",1,null,null,null,null,null,"AUSENTE","Aprovado"]
[7838,"668.024.312-20","RICARDO LIMA DE DEUS","ricardolima2808@hotmail.com","28/08/1979 00:00:00","RO","Ji-Paraná","BRASIL","M",5,1,"RUA JOSE BEZERRA",1422,null,"NOVA BRASILIA","RO","Ji-Paraná",76908428,"(69) 99205-8145","(69) 3422 1412",null,"UNIR","Porto Velho - RO",null,null,"Outro tipo de estabelecimento",null,null,null,null,null,null,null,"---",null,null,3,"MATEMÁTICA","02/2000","12/2003",1,null,null,null,null,null,13,"Aprovado"]
[6379,"787.785.222-34","RITA DE CASSIA PINTO MIRANDA","rita.pinto2011@hotmail.com","24/04/1976 00:00:00","MT","Araputanga","BRASIL","F",1,1,"AVENIDA",6239,"CASA","CIDADE ALTA","RO","Rolim de Moura",76940000,"(69) 8410-6652",null,null,"UNIR","Porto Velho - RO",null,null,"---",null,null,null,null,null,null,null,"---",null,null,null,null,null,null,null,null,null,null,null,null,"AUSENTE","Aprovado"]
[396,"615.662.842-87","RODRIGO DUARTE DE OLIVEIRA TOLÊDO","rodrigotoledo7@gmail.com","16/10/1979 00:00:00","MG","Coronel Fabriciano","BRASIL","M",1,1,"Rua Guiana - de 2863/2864 ao fim",2904,"Apartamento 14, Bloco J","Embratel","RO","Porto Velho",76820749,"(69) 98106-6811",6932193815,6932171027,"UNIR","Porto Velho - RO",null,"ESCOLA ESTADUAL DE ENSINO FUNDAMENTAL E MÉDIO MARECHAL RONDON","Escola da Rede Estadual",null,"VILHENA - RO","PROFESSOR NÍVEL III","06/2010","CENTRO UNIVERSITÁRIO CLARETIANO","VILHENA - RO","TUTOR PRESENCIAL - EAD","Escola Privada","09/2014",null,1,"LICENCIATURA PELA EM MATEMÁTICA","07/2001","11/2008",1,3,"DOCÊNCIA DO ENSINO SUPERIOR","03/2010","06/2011",1,13,"Aprovado"]
[16595,"697.408.872-87","ROMEU CESTARO","romeucestaro@gmail.com","07/06/1983 00:00:00","ES","Montanha","BRASIL","M",5,1,"Avenida Tiradentes",2371,"Casa","Setor 01","RO","Jaru",76890000,"(69) 99221-5136","(69) 3521-2184",null,"UNIR","Porto Velho - RO",null,"Escola SENAI Ji-Paraná","Escola Privada",null,"Ji-Paraná - RO","Instrutor II","08/2012",null,null,null,"---",null,null,1,"MATEMÁTICA","02/2013","06/2016",1,2,"SISTEMAS DE INFORMAÇÃO","02/2001","06/2006",1,10,"Aprovado"]
[3521,"639.019.512-53","RONY VON DE JESUS SANTOS","profronyvon@hotmail.com","02/11/1978 00:00:00","BA","Camacan","BRASIL","M",1,1,"RUA ZELIA GATAI",3458,null,"SETOR COLONIAL","RO","Ariquemes",76873748,"(69) 98472-3673",null,null,"UNIR","Porto Velho - RO",null,"EMEIEF. MAFALDA RODRIGUES","Escola da Rede Municipal","09/2017","ARIQUEMES - RO","PROFESSOR","02/2003",null,null,null,"---",null,null,1,"MATEMÁTICA","02/2004","12/2007",1,3,"EDUCAÇÃO MATEMÁTICA COM ÊNFASE EM MATEMÁTICA FINANCEIRA","02/2011","02/2013",1,13,"Aprovado"]
[15128,"677.053.832-68","ROSILENE DE SOUZA LEMES","rosilene_lemes@hotmail.com","16/02/1982 00:00:00","RO","ariquemes","BRASIL","F",3,1,"rua Uirapuru",1710,null,"SETOR 02","RO","ariquemes",76873228,"(69) 98409-2765",35355756,null,"UNIR","Porto Velho - RO",null,null,"---",null,null,null,null,null,null,null,"---",null,null,null,null,null,null,null,null,null,null,null,null,"AUSENTE","Aprovado"]
[7913,"930.162.122-34","ROZELMA FERNANDES FERREIRA","rozelmafernandes@hotmail.com","02/12/1985 00:00:00","AM","Humaitá","BRASIL","F",1,1,"casa",587,"casa","sao domingos savio","AM","Humaitá",69800000,"(97) 98123-0314",null,null,"UNIR","Porto Velho - RO",null,"centro educacional evangélico betel","Escola Privada","02/2017","Humaitá - AM","professora de matematica","02/2014",null,null,null,"---",null,null,1,"licenciatura ciências matemática e fisica","11/2006","04/2013",1,null,null,null,null,null,9,"Aprovado"]
[11662,"678.737.902-15","SILVIO DOMINGUES RAMOS","silvio_matematico@hotmail.com","25/07/1978 00:00:00","RO","ALTO PARAÍSO","BRASIL","M",1,1,"CAPELARO",4881,null,"JARDIM ELDORADO","RO","ALTO PARAÍSO",76862000,"(69) 99974-0462",null,null,"UNIR","Porto Velho - RO",null,null,"---",null,null,null,null,null,null,null,"---",null,null,null,null,null,null,null,null,null,null,null,null,"AUSENTE",{"$f":"IF(AU135>=9,\"Aprovado\",\"Desclassificado\")","v":"Aprovado"}]
[15250,"976.916.152-72","TAIZA RUBIANE SILVA MARTINS","taizarsm@gmail.com","07/11/1989 00:00:00","RO","Ji-Paraná","BRASIL","F",5,1,"Av. Ji-Paraná",323,null,"Urupá","RO","Ji-Paraná",76900239,"(69) 99234-3122",6934215894,null,"UNIR","Porto Velho - RO",null,null,"---",null,null,null,null,null,null,null,"---",null,null,null,null,null,null,null,null,null,null,null,null,"AUSENTE","Aprovado"]
[14344,"928.441.892-53","TALISSON MORAIS PEREIRA","talisson.moraiss@gmail.com","25/10/1990 00:00:00","RO","Porto Velho","BRASIL","M",1,1,"Rua Manoel Laurentino de Souza - de 1340/1341 a 2011/2012",1463,null,"Nova Porto Velho","RO","Porto Velho",76820146,"(69) 99334-3686",null,null,"UNIR","Porto Velho - RO",null,null,"---",null,null,null,null,null,null,null,"---",null,null,null,null,null,null,null,null,null,null,null,null,"AUSENTE","Aprovado"]
[17486,"009.280.002-57","UALITON FERREIRA DE SOUSA","walitonferreira@hotmail.com","23/03/1991 00:00:00","RO","Porto Velho","BRASIL","M",5,1,"Rua Tamareira ",4017,"CASA","Conceição","RO","Porto Velho",76808304,"(69) 99330-4970","69 3210 0894",null,"UNIR","Porto Velho - RO",null,"E.E.E.F.M JOÃO BENTO DA COSTA","Escola da Rede Estadual",null,"PORTO VELHO - RO","PROFESSOR DE MATEMÁTICA","04/2017","INSTITUTO EVANGÉLICO DE EDUCAÇÃO PAUL AENIS","PORTO VELHO - RO","PROFESSOR DE MATEMÁTICA","Escola Privada","05/2013","02/2017",1,"Licenciatura plena em matemática","02/2010","12/2013",1,3,"Matemática financeira e Estatística","06/2015","06/2016",1,"AUSENTE","Aprovado"]
[25004,"914.300.032-00","UEBERTON DA COSTA CAMPOS","webertonn_ufro@hotmail.com","02/06/1988 00:00:00","RO","porto velho","BRASIL","M",5,1,"CASA",6078,"CASA","COHAB FLORESTA","RO","PORTO VELHO",76807644,"(69) 99261-4618",null,null,"UNIR","Porto Velho - RO",null,null,"---",null,null,null,null,null,null,null,"---",null,null,null,null,null,null,null,null,null,null,null,null,7,"Desclassificado"]
[17239,"729.165.672-91","UELITON FRANÇA DA SILVA","uelitondez@gmail.com","20/12/1982 00:00:00","RO","Porto Velho","BRASIL","M",5,1,"RUA TANCREDO NEVES",4443,"ESQUINA COM ABILIO NASCIMENTO","CALADINHO","RO","Porto Velho",76808172,"(69) 99243-6026",null,null,"UNIR","Porto Velho - RO",null,"EEEF JORGE VICENTE SALAZAR DOS SANTOS","Escola da Rede Estadual",null,"PORTO VELHO - RO","PROFESSOR DE MATEMÁTICA","07/2010","EEEFM CAPITÃO CLAUDIO MANOEL DA COSTA","PORTO VELHO - RO","PROFESSOR DE MATEMÁTICA","Escola da Rede Estadual","02/2015",null,1,"MATEMÁTICA","02/2004","06/2008",1,null,null,null,null,null,"AUSENTE","Aprovado"]
[15563,"994.359.421-72","VALDEIR MIATELLO","valdeirmiatello_@hotmail.com","27/05/1983 00:00:00","MS","Ivinhema","BRASIL","M",1,1,"Avenida Vigésima",6034,"Apto 103 - Bloco B","Rio Madeira","RO","Porto Velho",76821436,"(69) 99206-5143",null,null,"UNIR","Porto Velho - RO",null,"11001119 - EEEFM GOV ARAUJO LIMA (PORTO VELHO/RO)","Escola da Rede Estadual","09/2018","Porto Velho - RO","Professor","09/2016",null,null,null,"---",null,null,1,"Matemática","02/2009","12/2012",1,null,null,null,null,null,12,"Aprovado"]
[13779,"576.299.862-20","VANDERLEI REGINO JOÃO ROSA","vandointelecto-nbo@hotmail.com","26/04/1975 00:00:00","MG","Belo Horizonte","BRASIL","M",1,1,"CASA",1617,"CASA","CENTRO","RO","Nova Brasilândia D",76958000,"(69) 98472-3734",34183628,null,"UNIR","Porto Velho - RO",null,"EEEF ALEXANDRE DE GUSMÃO","Escola da Rede Estadual",null,"NOVA BRASILÂNDIA D'OESTE - RO","PROFESSOR",null,"EMEIEF NOSSA SENHORA DAS GRAÇAS","NOVA BRASILÂNDIA D'OESTE - RO","PROFESSOR","Escola da Rede Municipal",null,null,1,"Matemática","01/2000","02/2004",1,1,"Ensino de Matemática","02/2013","11/2013",1,5,"Desclassificado"]
[23054,"030.279.622-30","VICTO HUGO GUEDES CABRAL","vito_guedes@hotmail.com","05/06/1996 00:00:00","RO","Porto Velho","BRASIL","M",5,1,"rua: Arruda Fontes Cabral   nº 1010","CASA",null,"Agenor de Carvalho","RO","Porto Velho",76820240,"(69) 99332-0886","(69) 32223048",null,"UNIR","Porto Velho - RO",null,null,"---",null,null,null,null,null,null,null,"---",null,null,1,"Matemática","03/2014","12/2017",3,null,null,null,null,null,11,"Aprovado"]
[18943,"794.330.302-49","VIVIAN  SOMBRA DE CASTRO","viviansombra@gmail.com","29/03/1981 00:00:00","AM","Manaus","BRASIL","F",5,1,"Rua Eudóxia Barros - de 6292/6293 a 6587/6588",6292,null,"Aponiã","RO","Porto Velho",76824080,"(69) 9952-4999",6932152531,null,"UNIR","Porto Velho - RO",null,"Escola Estadual Marcelo Candia subsede 1","Escola da Rede Estadual",null,"Porto Velho - RO","Professor","03/2011",null,"Porto Velho - RO",null,"---",null,null,1,"Matemática ","10/2002","12/2008",1,null,null,null,null,null,"AUSENTE","Aprovado"]
[15279,"897.709.272-87","WANDES MELO MACIEL","wandes.melo@hotmail.com","10/10/1987 00:00:00","MA","IMPERATRIZ","BRASIL","M",1,1,"RUA IDALVA FRAGA MOREIRA",3076,"CASA","JK-1","RO","PORTO VELHO",76829440,"(69) 99237-5145",69992375145,null,"UNIR","Porto Velho - RO",null,null,"---",null,null,null,null,null,null,null,"---",null,null,null,null,null,null,null,null,null,null,null,null,17,"Aprovado"]

{"sheet":"Planilha1","index":1,"n_rows":141,"n_cols":3,"rows_kept":141,"cut":false,"hidden":true,"merged":[]}
["CPF","Nota","Situação"]
["70132437287",3,{"$f":"IF(OR(B2=\"AUSENTE\",B2<9),\"Desclassificado\",\"Aprovado\")","v":"Desclassificado"}]
["47132612115",3,"Desclassificado"]
["83616403200",3,"Desclassificado"]
["02640436260",4,"Desclassificado"]
["56157240210",5,"Desclassificado"]
["12455598349",5,"Desclassificado"]
["00320550214",5,"Desclassificado"]
["57629986220",5,"Desclassificado"]
["90255690215",6,"Desclassificado"]
["52935400259",6,"Desclassificado"]
["65422236220",6,"Desclassificado"]
["02075248230",6,"Desclassificado"]
["59900660234",6,"Desclassificado"]
["00108696200",6,"Desclassificado"]
["77839862268",6,"Desclassificado"]
["82250634220",6,"Desclassificado"]
["28370902200",6,"Desclassificado"]
["19819536200",6,"Desclassificado"]
["02240087226",7,"Desclassificado"]
["91430003200",7,"Desclassificado"]
["38591740297",8,"Desclassificado"]
["54492378987",8,"Desclassificado"]
["32645449204",9,"Aprovado"]
["71832092372",9,"Aprovado"]
["35056347272",9,"Aprovado"]
["85263834268",9,"Aprovado"]
["26354730644",9,"Aprovado"]
["85065293287",9,"Aprovado"]
["93016212234",9,"Aprovado"]
["88468330230",10,"Aprovado"]
["02233262247",10,"Aprovado"]
["01503829286",10,"Aprovado"]
["42271738253",10,{"$f":"IF(OR(B34=\"AUSENTE\",B34<9),\"Desclassificado\",\"Aprovado\")","v":"Aprovado"}]
["90142110230",10,"Aprovado"]
["75197065249",10,"Aprovado"]
["03030738450",10,"Aprovado"]
["86071408253",10,"Aprovado"]
["74385356653",10,"Aprovado"]
["69740887287",10,"Aprovado"]
["58305718204",11,"Aprovado"]
["63236346272",11,"Aprovado"]
["74752529220",11,"Aprovado"]
["76387674204",11,"Aprovado"]
["00354379283",11,"Aprovado"]
["64923720263",11,"Aprovado"]
["03617566235",11,"Aprovado"]
["81444141287",11,"Aprovado"]
["34104143200",11,"Aprovado"]
["75649233268",11,"Aprovado"]
["03027962230",11,"Aprovado"]
["72929375272",12,"Aprovado"]
["77105591234",12,"Aprovado"]
["60247185272",12,"Aprovado"]
["50219723320",12,"Aprovado"]
["71166890287",12,"Aprovado"]
["51698846215",12,"Aprovado"]
["40864324200",12,"Aprovado"]
["01481003259",12,"Aprovado"]
["16169093234",12,"Aprovado"]
["63449196200",12,"Aprovado"]
["65750977234",12,"Aprovado"]
["80250041200",12,"Aprovado"]
["99435942172",12,"Aprovado"]
["22135960268",13,"Aprovado"]
["92090982772",13,{"$f":"IF(OR(B66=\"AUSENTE\",B66<9),\"Desclassificado\",\"Aprovado\")","v":"Aprovado"}]
["94756210244",13,"Aprovado"]
["02904833102",13,"Aprovado"]
["94479160230",13,"Aprovado"]
["77653106234",13,"Aprovado"]
["18856357453",13,"Aprovado"]
["81828543268",13,"Aprovado"]
["38713705253",13,"Aprovado"]
["79221360210",13,"Aprovado"]
["90624220206",13,"Aprovado"]
["61430153253",13,"Aprovado"]
["66802431220",13,"Aprovado"]
["61566284287",13,"Aprovado"]
["63901951253",13,"Aprovado"]
["07845128929",14,"Aprovado"]
["91238692249",14,"Aprovado"]
["80719414253",14,"Aprovado"]
["92128505291",15,"Aprovado"]
["01327749254",15,"Aprovado"]
["09697193614",15,"Aprovado"]
["77024710268",15,"Aprovado"]
["53116852200",15,"Aprovado"]
["61321680287",16,"Aprovado"]
["01785959263",16,"Aprovado"]
["02641320410",16,"Aprovado"]
["92061834191",16,"Aprovado"]
["00267612206",16,"Aprovado"]
["78636574234",17,"Aprovado"]
["89770927287",17,"Aprovado"]
["69594910291",18,"Aprovado"]
["17170583291",18,"Aprovado"]
["42275539204",18,"Aprovado"]
["01920629211",18,{"$f":"IF(OR(B98=\"AUSENTE\",B98<9),\"Desclassificado\",\"Aprovado\")","v":"Aprovado"}]
["85384127287",19,"Aprovado"]
["08528055272",19,"Aprovado"]
["01282838237",19,"Aprovado"]
["24500631291",19,"Aprovado"]
["03786995630",20,"Aprovado"]
["65437594291",20,"Aprovado"]
["61692727249","AUSENTE","Desclassificado"]
["91161860282","AUSENTE","Desclassificado"]
["06032336603","AUSENTE","Desclassificado"]
["41986016234","AUSENTE","Desclassificado"]
["32690070278","AUSENTE","Desclassificado"]
["65975928249","AUSENTE","Desclassificado"]
["82331928215","AUSENTE","Desclassificado"]
["01534310240","AUSENTE","Desclassificado"]
["88906876220","AUSENTE","Desclassificado"]
["65055497220","AUSENTE","Desclassificado"]
["73543551272","AUSENTE","Desclassificado"]
["87030829204","AUSENTE","Desclassificado"]
["40830411291","AUSENTE","Desclassificado"]
["01042803285","AUSENTE","Desclassificado"]
["02627945270","AUSENTE","Desclassificado"]
["06500827961","AUSENTE","Desclassificado"]
["47849398220","AUSENTE","Desclassificado"]
["47103779287","AUSENTE","Desclassificado"]
["83588477268","AUSENTE","Desclassificado"]
["65720261249","AUSENTE","Desclassificado"]
["30217679234","AUSENTE","Desclassificado"]
["94240019753","AUSENTE","Desclassificado"]
["13242222806","AUSENTE","Desclassificado"]
["59366974287","AUSENTE","Desclassificado"]
["94427097200","AUSENTE","Desclassificado"]
["01401589286","AUSENTE",{"$f":"IF(OR(B130=\"AUSENTE\",B130<9),\"Desclassificado\",\"Aprovado\")","v":"Desclassificado"}]
["03636181122","AUSENTE","Desclassificado"]
["99918390972","AUSENTE","Desclassificado"]
["99666480204","AUSENTE","Desclassificado"]
["78778522234","AUSENTE","Desclassificado"]
["67705383268","AUSENTE","Desclassificado"]
["67873790215","AUSENTE","Desclassificado"]
["97691615272","AUSENTE","Desclassificado"]
["92844189253","AUSENTE","Desclassificado"]
["00928000257","AUSENTE","Desclassificado"]
["72916567291","AUSENTE","Desclassificado"]
["79433030249","AUSENTE","Desclassificado"]

{"sheet":"Teste","index":2,"n_rows":7,"n_cols":4,"rows_kept":7,"cut":false,"hidden":false,"merged":[]}
[]
[]
[null,"Digite abaixo  seu CPF (somente números)","Nota","Situação"]
[null,null,{"$f":"IF(B4=\"\",\"\",IFERROR(VLOOKUP($B$4,Planilha1!$A$1:$C$140,2,FALSE),\"cpf não encontrado\"))","v":""},{"$f":"IF(B4=\"\",\"\",IFERROR(VLOOKUP($B$4,Planilha1!$A$1:$C$140,3,FALSE),\"cpf não encontrado\"))","v":""}]
[]
[null,"Observação 1: Segundo o edital, notas inferiores a 9 pontos  (30% de 30 pontos) desclassificam o Candidato"]
[null,"Observação 2: A ordem dos 15 alunos classificados para formar a Turma 9 - 2019 será publicada posteriormente neste no site www.profmat.unir.br"]